Workbook

Sheet Admin (hidden)
A1: Art der Veränderung | B1: dkPAP-Stufe | C1: Spalte 1
A2: Neue oder zusätzliche Werkzeuge | B2: Stufe 3
A3: Modifizierte Werkzeuge | B3: Stufe 2 | C3: Fokus auf Veränderung
A4: Werkzeug-, Produktions- oder Gerätetransfer | B4: Stufe 2
A5: Lieferantenwechsel oder nicht gleichwertige Materialien | B5: Stufe 3
A6: Produkt, wenn das Werkzeug für >12 Monate inaktiv war | B6: Stufe 1
A7: Produkt-/Prozessänderungen bei Komponenten eines Produkts | B7: Stufe 3
A8: Änderung des Prüfverfahrens | B8: Stufe 2 | C8: mit Fokus auf Veränderung/Auswirkung der Veränderung
A9: Schüttgut: Neue Rohstoffquelle | B9: Stufe 3
A10: Änderung des Produktaussehens | B10: Stufe 1
A11: Neues Bauteil | B11: Stufe 3
A12: Neuer Lieferant | B12: Stufe 3
A13: Änderung des Produktionsprozesses oder -verfahrens | B13: Stufe 3
A14: VDA Mindesteinhaltung | B14: Stufe 1
A15: Standortwechsel | B15: Stufe 3
A17: Tab Farben
C20: Dropdown für benutzerdefiniert
C22: ✔
C23: E
A26: Ausgewählte Stufe
A27: Stufe 1
A28: Stufe 2
A29: Stufe 3
A30: BENUTZERDEFINIERT

Sheet Definitions (hidden)

Sheet 0.Submission Checklist
A1: Vom dormakaba-Team auszufüllen: | N1: Vom Lieferanten auszufüllen:
A2: Zeichnungsnummer: | N2: Name des Lieferanten:
A3: Zeichnungsrevision: | N3: Standort des Lieferanten:
A4: Material # (SAP falls zutreffend): | N4: Kontaktperson Lieferant:
A5: Materialbeschreibung: | N5: E-Mail Kontaktperson:
A6: Verantwortlicher dk-Ingenieur: | N6: Teilereferenznr. des Lieferanten:
A7: dk Einkaufverantwortlicher: | N7: dk Einkaufverantwortlicher:
A8: dk Qualitätsverantwortlicher:
A9: dkPAP Erstellungsdatum: | D9: Submission
A10: dkPAP Fälligkeitsdatum:
A11: dkPAP Referenz # (falls zutreffend): | O11: Vorlagedokumente | U11: =IF(C14="Stufe 1",COUNTA(D18:D34),IF(C14="Stufe 2",COUNTA(E18:E34),IF(C14="Stufe 3",COUNTA(F18:F34),COUNTA(G18:G34)))) -> 8
A12: Grund für dkPAP | C12: Änderung des Prüfverfahrens | D12: Bauteil enthält CTQ? | I12: Ja
A13: Erforderliche Stufe | C13: =VLOOKUP($C$12,Change_Table[],2,0) -> Stufe 2 | D13: Bauteil enthält SW/ZB? | I13: Ja
A14: Vorlagestufe | C14: Stufe 1 | D14: Anzahl benötigter Muster: | I14: (Anzahl einfügen)
D15: Beispiel PO-Nummer: | I15: (PO-Nummer einfügen)
A16: # | B16: Matrix Anforderungen | D16: Stufe | H16: Beschreibungen und Erläuterungen: Bewegen Sie den Mauszeiger über die Zelle für eine genauere Definition der Anforderung.
D17: 1 | E17: 2 | F17: 3 | G17: B
A18: 1 | B18: Entwurfsprotokoll/Zeichnung | D18: ✔ | E18: ✔ | F18: ✔ | G18: ✔ | H18: Fügen Sie eine saubere Kopie der aktuell genehmigten Ballonzeichnung zur Überprüfung bei.
A19: 2 | B19: Design FMEA | E19: ✔ | F19: ✔ | H19: Erforderliches Zugriffsrecht nur, wenn der Lieferant für die Teilegestaltung verantwortlich ist.
A20: 3 | B20: Prozess FMEA | E20: ✔ | F20: ✔ | H20: Prozessschritte in FMEA müssen mit dem Prozessleitplan übereinstimmen und alle mit jedem Vorgang verbundenen Merkmale berücksichtigen.
A21: 4 | B21: Kontrollplan | E21: ✔ | F21: ✔ | H21: Kontrollplan, der alle Prozesskontrollen aufzeichnet.
A22: 5 | B22: Messsystemanalyse (MSA) GR&R | D22: =IF(AND(I12="Ja", C14="Stufe 1"), D23, " ") -> ✔ | E22: =IF(AND(I12="Ja", C14="Stufe 2"), D23, " ") ->  | F22: ✔ | G22: ✔ | H22: Analyse der Messwerkzeuge für alle im Kontrollplan erkannten Prüfstellen, die zur Messung von CTQs verwendet werden.
A23: 6 | B23: Ergebnisse der Maßprüfung | D23: ✔ | E23: ✔ | F23: ✔ | H23: Messergebnisse aller Abmessungen der in 1. angegebenen Stücklistensymbolzeichnung. Direkt in Excel-Arbeitsmappe einfügen.
A24: 7 | B24: Materialtestergebnisse | F24: ✔ | H24: Analysezertifikate aller Primärrohstoffe wie beispielsweise Chemikalien, Kunststoffe, Metalle und Kautschuke
A25: 8 | B25: Leistungstestergebnisse | D25: ✔ | E25: ✔ | F25: ✔ | H25: Leistungstestanforderungen und -ergebnisse
A26: 9 | B26: Statistische Analyse & Leistungsfähigkeit | D26: =IF(AND(I12="Ja", C14="Stufe 1"), D23, " ") -> ✔ | F26: ✔ | H26: Die statistische Analyse und Prozessfähigkeit bei einem Mindestprobenlauf von 30 Stück muss an allen qualitätskritischen (CTQ-) Abmessungen des Bauteils durchgeführt werden.
A27: 10 | B27: Post dkPAP Run at Rate Pilot Run | F27: ✔ | H27: Überprüfung der Produktionsläufe mit Stichproben zur Einreichung in größeren Mengen. Anzahl benötigter Bauteile
A28: 11 | B28: Zulassung des Erscheinungsbilds | D28: ✔ | E28: ✔ | F28: ✔ | H28: Methode tbd, Nur erforderlich für Bauteile mit Farbe, Maserung oder anderen kosmetischen Anforderungen, die auf dem Teiledruck angegeben sind.
A29: 12 | B29: Referenzmuster | F29: ✔ | H29: Ein Referenzmuster ist ein Endmuster des Produkts, das vom Kunden geprüft und unterschrieben wurde
A30: 13 | B30: Werkzeuginformationsformular | E30: ✔ | F30: ✔ | H30: Erforderlich für alle dormakaba-eigenen Werkzeuge
A31: 14 | B31: Verpackungsform | F31: ✔ | H31: Wird verwendet, um sowohl externe als auch interne Verpackungsanforderungen zu skizzieren und zu überprüfen, einschließlich aller damit verbundenen Tests.
A32: 15 | B32: Prüfmittel | F32: ✔ | H32: Zur Dokumentation aller teilespezifischen Prüfmittel (für Baugruppen oder Komponenten)
A33: 16 | B33: Validierung von Software-/Firmwareänderungen | D33: =IF(AND(I13="Ja", C14="Stufe 1"), D23, " ") -> ✔ | E33: =IF(AND(I13="Ja", C14="Stufe 2"), D23, " ") ->  | F33: =IF(AND(I13="Ja", C14="Stufe 3"), D23, " ") ->  | H33: Eine vollständige Programmierüberprüfung der Erwartungswerte und der verifizierten Werte, die bei SW/ZB-Änderungen miteinzubeziehen sind.
A34: 17 | B34: Teilevorlagebestätigung (PSW) | D34: ✔ | E34: ✔ | F34: ✔ | H34: Für alle Bauteile ist ein vollständig ausgefülltes dormakaba PSW erforderlich, das gewährleistet, dass das Teil/Material alle geltenden Spezifikationen und Normen erfüllt.

Sheet 1.Design Record Drawing
C2: Bestandsplan
C4: Materialnummer: | D4: ='0.Submission Checklist'!D4 -> 0
C5: Zeichnungsnummer: | D5: ='0.Submission Checklist'!D2 -> 0
C6: Zeichnungsrevision: | D6: ='0.Submission Checklist'!D3 -> 0
C7: Vorbereitet von:

Sheet 2.Design FMEA
A1: Design-Fehlermodus- und -auswirkungsanalyse
C2: Produktnummer: | F2: Markt: | K2: Dokumentennummer:
C3: Produktname: | F3: Modelljahr: | K3: Erscheinungsdatum:
C4: Teammitglieder: | K4: Datum der letzten Revision:
C5: Revisionsnummer: | F5: Genehmigt von: | K5: Neues Revisionsdatum:
A7: Artikel | B7: Produktfunktion | C7: Potenzieller Ausfallmodus | D7: Potenzielle Ausfalleffekte | E7: B | F7: Mögliche Ursachen | G7: A | H7: Derzeitige Prüfungen | I7: E | J7: RPZ | K7: Empfohlene Handlungen | L7: Pläne/Verantwortung | M7: pB | N7: pA | O7: pE | P7: pRPZ
J8: =E8*G8*I8 -> 0 | P8: =O8*N8*M8 -> 0
J9: 0 | P9: 0
J10: 0 | P10: 0
J11: 0 | P11: 0
J12: 0 | P12: 0
J13: 0 | P13: 0
J14: 0 | P14: 0
J15: 0 | P15: 0
J16: 0 | P16: 0
J17: 0 | P17: 0
J18: 0 | P18: 0
J19: 0 | P19: 0
J20: 0 | P20: 0
J21: 0 | P21: 0
J22: 0 | P22: 0
J23: 0 | P23: 0
J24: 0 | P24: 0
J25: 0 | P25: 0
J26: 0 | P26: 0
J27: 0 | P27: 0
J28: 0 | P28: 0
J29: 0 | P29: 0
J30: 0 | P30: 0
J31: 0 | P31: 0
J32: 0 | P32: 0
J33: 0 | P33: 0
J34: 0 | P34: 0
J35: 0 | P35: 0
J36: 0 | P36: 0
J37: 0 | P37: 0
J38: 0 | P38: 0
J39: 0 | P39: 0
J40: 0 | P40: 0
J41: 0 | P41: 0
J42: 0 | P42: 0
J43: 0 | P43: 0
J44: 0 | P44: 0
J45: 0 | P45: 0
J46: 0 | P46: 0
J47: 0 | P47: 0
J48: 0 | P48: 0
J49: 0 | P49: 0
J50: 0 | P50: 0
J51: 0 | P51: 0
J52: 0 | P52: 0
J53: 0 | P53: 0
J54: 0 | P54: 0
J55: 0 | P55: 0
J56: 0 | P56: 0
J57: 0 | P57: 0
J58: 0 | P58: 0
J59: 0 | P59: 0
J60: 0 | P60: 0
J61: 0 | P61: 0
J62: 0 | P62: 0
J63: 0 | P63: 0
J64: 0 | P64: 0
J65: 0 | P65: 0
J66: 0 | P66: 0
J67: 0 | P67: 0
J68: 0 | P68: 0
J69: 0 | P69: 0
J70: 0 | P70: 0
J71: 0 | P71: 0
J72: =E72*G72*I72 -> 0 | P72: 0
J73: 0 | P73: 0
J74: 0 | P74: 0
J75: 0 | P75: =O75*N75*M75 -> 0
J76: 0 | P76: 0
J77: 0 | P77: 0
J78: 0 | P78: 0
J79: 0 | P79: 0
J80: 0 | P80: 0
J81: 0 | P81: 0
J82: 0 | P82: 0

Sheet 3.Process FMEA
A1: Prozessfehlermodus- und -auswirkungsanalyse
C2: Produktnummer: | F2: Markt: | K2: Dokumentennummer:
C3: Produktname: | F3: Modelljahr: | K3: Erscheinungsdatum:
C4: Teammitglieder: | K4: Datum der letzten Revision:
C5: Revisionsnummer: | F5: Genehmigt von: | K5: Neues Revisionsdatum:
A7: Artikel | B7: Produktfunktion | C7: Potenzieller Ausfallmodus | D7: Potenzielle Ausfalleffekte | E7: B | F7: Mögliche Ursachen | G7: A | H7: Derzeitige Prüfungen | I7: E | J7: RPZ | K7: Empfohlene Handlungen | L7: Pläne/Verantwortung | M7: pB | N7: pA | O7: pE | P7: pRPZ
J8: =E8*G8*I8 -> 0 | P8: =O8*N8*M8 -> 0
J9: 0 | P9: 0
J10: 0 | P10: 0
J11: 0 | P11: 0
J12: 0 | P12: 0
J13: 0 | P13: 0
J14: 0 | P14: 0
J15: 0 | P15: 0
J16: 0 | P16: 0
J17: 0 | P17: 0
J18: 0 | P18: 0
J19: 0 | P19: 0
J20: 0 | P20: 0
J21: 0 | P21: 0
J22: 0 | P22: 0
J23: 0 | P23: 0
J24: 0 | P24: 0
J25: 0 | P25: 0
J26: 0 | P26: 0
J27: 0 | P27: 0
J28: 0 | P28: 0
J29: 0 | P29: 0
J30: 0 | P30: 0
J31: 0 | P31: 0
J32: 0 | P32: 0
J33: 0 | P33: 0
J34: 0 | P34: 0
J35: 0 | P35: 0
J36: 0 | P36: 0
J37: 0 | P37: 0
J38: 0 | P38: 0
J39: 0 | P39: 0
J40: 0 | P40: 0
J41: 0 | P41: 0
J42: 0 | P42: 0
J43: 0 | P43: 0
J44: 0 | P44: 0
J45: 0 | P45: 0
J46: 0 | P46: 0
J47: 0 | P47: 0
J48: 0 | P48: 0
J49: 0 | P49: 0
J50: 0 | P50: 0
J51: 0 | P51: 0
J52: 0 | P52: 0
J53: 0 | P53: 0
J54: 0 | P54: 0
J55: 0 | P55: 0
J56: 0 | P56: 0
J57: 0 | P57: 0
J58: 0 | P58: 0
J59: 0 | P59: 0
J60: 0 | P60: 0
J61: 0 | P61: 0
J62: 0 | P62: 0
J63: 0 | P63: 0
J64: 0 | P64: 0
J65: 0 | P65: 0
J66: 0 | P66: 0
J67: 0 | P67: 0
J68: 0 | P68: 0
J69: 0 | P69: 0
J70: 0 | P70: 0
J71: 0 | P71: 0
J72: =E72*G72*I72 -> 0 | P72: 0
J73: 0 | P73: 0
J74: 0 | P74: 0
J75: 0 | P75: =O75*N75*M75 -> 0
J76: 0 | P76: 0
J77: 0 | P77: 0
J78: 0 | P78: 0
J79: 0 | P79: 0
J80: 0 | P80: 0
J81: 0 | P81: 0
J82: 0 | P82: 0

Sheet 4.Control Plan
I1: Kontrollplan
B2: Name des Lieferanten: | D2: ='0.Submission Checklist'!R2 -> 0 | H2: Zulassungen | K2: Vorbereitet von | O2: Ausgabedatum:
B3: Produktname | H3: Abteilung | I3: Name/Unterschrift | J3: Datum | K3: Abteilung | L3: Bezeichnung | M3: Abteilung | N3: Bezeichnung | O3: Revisionsdatum:
B4: Kontrollplannummer | H4: Qualität | I4: ='0.Submission Checklist'!D8 -> 0 | K4: Technik | M4: Im Maschinenzentrum | O4: Notizen:
H5: Einkauf | I5: ='0.Submission Checklist'!D7 -> 0 | K5: Qualität | M5: Montage | O5: Dieser Kontrollplan wird bei Prozessänderungen und/oder neuen Ausfallmodi aktualisiert.
H6: Technik | I6: ='0.Submission Checklist'!D6 -> 0 | K6: Verpackung | M6: Zeichnung
B7: Prozessablauf | E7: Produktfunktion und Kundenbeschwerden | H7: Gemessene Produkt-/Prozesscharakteristik | I7: Produkt-/ Prozessspezifikation | J7: Methoden | M7: Verantwortliche Person | N7: Vorgesetzter | O7: Aufzeichung | P7: Reaktion, wenn außer Kontrolle / nicht konform
B8: Prozessschritt-Nr. | C8: Prozessschrittname | D8: Maschine, Gerät, Vorrichtung für die Fertigung | J8: Messverfahren | K8: Muster
E9: Ölleckage vom Ritzel | K9: Größe | L9: Häufigkeit
B10: 0 | C10: Hauptschritt
B11: 0.1 | C11: Teilschritt
B12: 0.2 | C12: Teilschritt
B13: 0.3 | C13: Teilschritt
B14: 0.4 | C14: …
B15: 0.5
B16: 0.6
B17: 0.7
B18: 0.8
B19: 1 | C19: Hauptschritt
B20: 1.1 | C20: Teilschritt
B21: 1.2 | C21: Teilschritt
B22: 1.3 | C22: Teilschritt
B23: 1.4 | C23: …
B24: 2 | C24: Hauptschritt
B25: 2.1 | C25: Teilschritt
B26: 2.2 | C26: Teilschritt
B27: 2.3 | C27: Teilschritt
B28: 2.4 | C28: …
B29: 3
B30: 3.1
B31: 3.2
B32: 3.3
B33: 3.4
B34: 3.5
B35: 3.6
B36: 3.7
B37: 3.8
B38: 4
B39: 4.1
B40: 5
B41: 5.1
B42: 6
B43: 6.1
B44: 6.2
B45: 6.3
B46: 6.4
B47: 6.5

Sheet 5.MSA GR&R
C2: MSA GR&R
C5: Material: | F5: ='0.Submission Checklist'!D4 -> 0
C6: Zeichnungsnummer: | F6: ='0.Submission Checklist'!D2 -> 0
C7: Zeichnungsrevision: | F7: ='0.Submission Checklist'!D3 -> 0
C8: Vorbereitet von:
C10: Anleitung für dieses Formular:
C11: 1) Füllen Sie nur die schattierten Felder aus.
C12: 2) Wenn Sie codierte Daten verwenden, achten Sie darauf, die „Gesamttoleranz“ in codierter Form zu schreiben.
C14: Hinweis: „Gesamttoleranz“ und „Bedienernamen“ MÜSSEN ausgefüllt werden, damit das Formular ordnungsgemäß funktioniert!!
E16: Messgerätename: | I16: Bauteilnummer: | M16: Durchgeführt von:
E17: Messgerätenummer: | I17: Bauteilname: | M17: Bediener A:
E18: Abstufungen: | I18: Betriebsnummer: | M18: Bediener B:
E19: Null ist gleich: | I19: Merkmal: | M19: Bediener C:
E20: Maßeinheit: | I20: Spezifikation: | M20: Bereich:
I21: Gesamttoleranz: | M21: Datum:
C23: Anleitung:
C24: 1) Wählen Sie 10 Teile zufällig aus und nummerieren Sie sie von 1 bis 10. (bei Bedarf können Sie 5 Teile verwendet)
C25: 2) Lassen Sie zwei oder drei Bediener unabhängig voneinander jedes Teil zwei- oder dreimal messen. Notieren Sie die Ergebnisse unten.
C26: 3) Analysieren Sie die Ergebnisse, um die Variabilität sowohl aufgrund der Wiederholbarkeit als auch der Reproduzierbarkeit zu bestimmen.
C28: Bediener | D28: A: | E28: =IF(N17="","",N17) ->  | H28: Bediener | I28: B) | J28: =IF(N18="","",N18) ->  | M28: Bediener | N28: C | O28: =IF(N19="","",N19) -> 
C29: Muster | D29: Wiederholungen | H29: Muster | I29: Wiederholungen | M29: Muster | N29: Wiederholungen
C30: Nummer | D30: 1 | E30: 2 | F30: 3 | G30: R | H30: Nummer | I30: 1 | J30: 2 | K30: 3 | L30: R | M30: Nummer | N30: 1 | O30: 2 | P30: 3 | Q30: R
C31: 1 | G31: =IF(COUNT(D31)=1,ABS((MAX(D31:F31))-(MIN(D31:F31)))," ") ->  | H31: 1 | L31: =IF(COUNT(I31)=1,ABS((MAX(I31:K31))-(MIN(I31:K31)))," ") ->  | M31: 1 | Q31: =IF(COUNT(N31)=1,ABS((MAX(N31:P31))-(MIN(N31:P31)))," ") -> 
C32: 2 | H32: 2 | M32: 2
C33: 3 | H33: 3 | M33: 3
C34: 4 | H34: 4 | M34: 4
C35: 5 | H35: 5 | M35: 5
C36: 6 | H36: 6 | M36: 6
C37: 7 | H37: 7 | M37: 7
C38: 8 | H38: 8 | M38: 8
C39: 9 | H39: 9 | M39: 9
C40: 10 | H40: 10 | M40: 10
C41: Total | D41: =IF(COUNT(D31)=1,SUM(D31:D40)," ") ->  | E41: =IF(COUNT(E31)=1,SUM(E31:E40)," ") ->  | F41: =IF(COUNT(F31)=1,SUM(F31:F40)," ") ->  | G41: =IF(COUNT(G31)=1,SUM(G31:G40)," ") ->  | H41: Total | I41: =IF(COUNT(I31)=1,SUM(I31:I40)," ") ->  | J41: =IF(COUNT(J31)=1,SUM(J31:J40)," ") ->  | K41: =IF(COUNT(K31)=1,SUM(K31:K40)," ") ->  | L41: =IF(COUNT(L31)=1,SUM(L31:L40)," ") ->  | M41: Total | N41: =IF(COUNT(N31)=1,SUM(N31:N40)," ") ->  | O41: =IF(COUNT(O31)=1,SUM(O31:O40)," ") ->  | P41: =IF(COUNT(P31)=1,SUM(P31:P40)," ") ->  | Q41: =IF(COUNT(Q31)=1,SUM(Q31:Q40)," ") -> 
C42: Mittel | D42: =IF(COUNT(D31)=1,AVERAGE(D31:D40)," ") ->  | E42: =IF(COUNT(E31)=1,AVERAGE(E31:E40)," ") ->  | F42: =IF(COUNT(F31)=1,AVERAGE(F31:F40)," ") ->  | G42: =IF(COUNT(G31)=1,AVERAGE(G31:G40)," ") ->  | H42: Mittel | I42: =IF(COUNT(I31)=1,AVERAGE(I31:I40)," ") ->  | J42: =IF(COUNT(J31)=1,AVERAGE(J31:J40)," ") ->  | K42: =IF(COUNT(K31)=1,AVERAGE(K31:K40)," ") ->  | L42: =IF(COUNT(L31)=1,AVERAGE(L31:L40)," ") ->  | M42: Mittel | N42: =IF(COUNT(N31)=1,AVERAGE(N31:N40)," ") ->  | O42: =IF(COUNT(O31)=1,AVERAGE(O31:O40)," ") ->  | P42: =IF(COUNT(P31)=1,AVERAGE(P31:P40)," ") ->  | Q42: =IF(COUNT(Q31)=1,AVERAGE(Q31:Q40)," ") -> 
D43: Xbar1 | E43: Xbar2 | F43: Xbar3 | G43: RbarA | I43: Xbar1 | J43: Xbar2 | K43: Xbar3 | L43: RbarB | N43: Xbar1 | O43: Xbar2 | P43: Xbar3 | Q43: RbarC
D45: XbarA = | E45: Xbar1 + Xbar2 + Xbar3 | I45: XbarB = | J45: Xbar1 + Xbar2 + Xbar3 | N45: XbarC = | O45: Xbar1 + Xbar2 + Xbar3
E46: Wiederholungen | J46: Wiederholungen | O46: Wiederholungen
D48: XbarA = | E48: =IF(COUNT(D42)=1,AVERAGE(D42:F42)," ") ->  | I48: XbarB = | J48: =IF(COUNT(I42)=1,AVERAGE(I42:K42)," ") ->  | N48: XbarC = | O48: =IF(COUNT(N42)=1,AVERAGE(N42:P42)," ") -> 
C50: Test zur statistischen Bereichskontrolle
C52: Rbar1 = | D52: RbarA + RbarB + RbarC = | H52: =IF(COUNT(Q42)=1,(G42+L42+Q42),(G42+L42)) ->  | I52: = | J52: =H52/H53 -> 
D53: Bediener | H53: =IF((N19>="a"),3,2) -> 2
C56: UCLR = | D56: D4 * Rbar1 = | G56: =IF((COUNT(D31:F31)=2),E100,E101) -> 2.574 | H56: * | I56: =J52 ->  | K56: = | L56: =G56*I56 ->  | N56: = Bereichsobergrenze
C58: Hinweis: D4 basiert auf der Anzahl Wiederholungen. (siehe Tabelle unten)
C60: Ausführliche Messsystemanalyse
C62: Wiederholbarkeit (Messvariation)
C64: SGV = | D64: Rbar1 / d2 = | F64: =J52 ->  | H64: / | I64: =IF((COUNT(D31:F31)=2),F100,F101) -> 1.693 | K64: = | L64: =F64/I64 -> 
C66: Hinweis: d2 basiert auf der Anzahl Wiederholungen. (siehe Tabelle unten)
C68: Prozentualer Toleranzverbrauch des Messgeräts:
C70: 100 * 6 * SGV | E70: = | F70: =L64*6*100 ->  | H70: = | I70: =(L64*6)/F71 -> 
C71: Toleranz | F71: =J21 -> 0
C73: Wiederholbarkeit (zwischen Betreibervariation)
C75: Rbar2 = | D75: XbarGrößtes von ABC - XbarKleinstes von ABC = | I75: =MAX(E48,J48,O48) -> 0 | K75: - | L75: =MIN(E48,J48,O48) -> 0 | N75: = | O75: =I75-L75 -> 0
C77: SOV = | D77: Rbar2 / d0 = | F77: =O75 -> 0 | H77: / | I77: =IF((COUNTA(N17:N19)=2),G100,G101) -> 1.908 | K77: = | L77: =F77/I77 -> 0
C79: Hinweis: d0 basiert auf der Anzahl Betreiber. (siehe Tabelle)
C81: Prozentsatz der von der Betreibervariation verbrauchten Toleranz:
C83: 100 * 6 * SOV | E83: = | F83: =L77*6*100 -> 0 | H83: = | I83: =(L77*6)/F84 -> 
C84: Toleranz | F84: =J21 -> 0
C86: Kombination Reproduzierbarkeit und Wiederholbarkeit (Messvariation)
C88: SMV = | E88: SOV2 + SGV2 = | H88: =L77 -> 0 | I88: + | J88: =L64 ->  | L88: = | M88: =SQRT((H88^2)+(J88^2)) -> 
C90: Prozentualer Toleranzverbrauch durch Messvariabilität:
L91: =IF(I92<0.1,"PASS",IF(AND(I92>=0.1, I92<=0.3),"MARGINAL",IF(I92>0.3,"FAIL","Error"))) -> 
C92: 100 * 6 * SMV | E92: = | F92: =M88*6*100 ->  | H92: = | I92: =(M88*6)/F93 -> 
C93: Toleranz | F93: =J21 -> 0
C97: Tabelle der in Berechnungen verwendeten Faktoren.
D99: n | E99: D4 | F99: d2 | G99: d0
D100: 2 | E100: 3.268 | F100: 1.128 | G100: 1.41
D101: 3 | E101: 2.574 | F101: 1.693 | G101: 1.908

Sheet 6.Dimensional Results
J1: Ergebnisse der Maßprüfung
H4: Lieferant: | K4: ='0.Submission Checklist'!R2 -> 0 | Q4: Design Eng: | Y4: Antragsteller:
H5: Inspektionsdatum: | Q5: Quality Eng: | Y5: ECR/CR
H6: Inspiziert von: | Q6: Kaufvertreter | Y6: Bauteil-ID
H7: RE: | K7: Siehe Abschnitt Notizen | Q7: Inspektionsart: | S7: Inspek.-typ eing.
J8: Gesamt # Dim: | K8: =IF(B15="","",COUNTA(B15:B333)) ->  | N8: Gesamt Fehlerhafte Dim: | O8: =IF(B15="","",COUNTIF(W15:X333,"X")) ->  | P8: % OOT: | Q8: =IF(B15="","",O8/K8) -> 
C9: Zeichnung: | G9: Rev: | I9: Beschreibung/Name:
B11: Zur Verfügung gestellte Dokumentation: | F11: C von C: | H11: Abweichung: | J11: Inspektionsdaten: | M11: Qualitätsplan: | Q11: Kommentierte Zeichnung: | T11: Serialisierte Teile:
I13: Toleranz | K13: Messverfahren | N13: Messgerät-ID | P13: MESSERGEBNISSE (DATEN) | Y13: Kommentare | AB13: USL | AC13: LSL | AD13: Mean | AE13: Std. | AH13: Pp | AI13: PPK
B14: Artikel | C14: Zone | D14: Spezifikation | H14: Abmessung | I14: Low | J14: High | P14: Smpl 1 | Q14: Smpl 2 | R14: Smpl 3 | S14: Smpl 4 | T14: Smpl 5 | U14: Smpl 6 | V14: Pass | W14: Fail
H15: 1.013 | I15: -0.015 | J15: 0.015 | P15: 1.026 | Q15: 1.026 | R15: 1.023 | S15: 1.026 | T15: 1.026 | U15: 1.026 | V15: =IF(I15="Ref","",(IF(I15="Basic","",(IF(P15="P","X",(IF(P15="F","",IF(MAX(P15:T15)>(H15+J15),"",IF(MIN(P15:T15)<(H15+I15),"","X"))))))))) -> X | W15: =IF(I15="Ref","",(IF(I15="Basic","",(IF(P15="P","",IF(P15="F","X",IF(MAX(P15:T15)>(H15+J15),"X",IF(MIN(P15:T15)<(H15+I15),"X","")))))))) ->  | AB15: =H15+J15 -> 1.028 | AC15: =H15+I15 -> 0.998 | AD15: =AVERAGE(P15:U15) -> 1.0255 | AE15: =_xlfn.STDEV.S(P15:U15) -> 0.001224744871 | AF15: =(AB15-AD15)/(3*AE15) -> 0.6804138174 | AG15: =(AD15-AC15)/(3*AE15) -> 7.484551992 | AH15: =(AB15-AC15)/(6*AE15) -> 4.082482905 | AI15: =MIN(AF15, AG15) -> 0.6804138174 | AJ15: =IF(Q15="","0",(IF(P15<AI15,1,IF(Q15>#REF!,1,0)))) ->  | AK15: =IF(R15="","0",(IF(R15<AI15,1,IF(R15>#REF!,1,0)))) ->  | AL15: =IF(S15="","0",(IF(S15<AI15,1,IF(S15>#REF!,1,0)))) ->  | AM15: =IF(T15="","0",(IF(T15<AI15,1,IF(T15>#REF!,1,0)))) ->  | AR15: <Reason for Insp> | AS15: 1.015
H16: 1.2 | I16: -0.015 | J16: 0.015 | W16: X | AB16: =H16+J16 -> 1.215 | AC16: =H16+I16 -> 1.185 | AD16: =AVERAGE(P16:T16) ->  | AE16: =_xlfn.STDEV.S(P16,Q16,R16,S16,T16) ->  | AI16: =MIN(AF16, AG16) ->  | AJ16: =IF(Q16="","0",(IF(P16<AI16,1,IF(Q16>#REF!,1,0)))) -> 0 | AK16: =IF(R16="","0",(IF(R16<AI16,1,IF(R16>#REF!,1,0)))) -> 0 | AL16: =IF(S16="","0",(IF(S16<AI16,1,IF(S16>#REF!,1,0)))) -> 0 | AM16: =IF(T16="","0",(IF(T16<AI16,1,IF(T16>#REF!,1,0)))) -> 0 | AR16: Assembly Issue | AS16: 1.01 | AU16: Yes
V17: X | AB17: 0 | AC17: 0 | AJ17: =IF(Q17="","0",(IF(P17<AI17,1,IF(Q17>#REF!,1,0)))) -> 0 | AK17: =IF(R17="","0",(IF(R17<AI17,1,IF(R17>#REF!,1,0)))) -> 0 | AL17: =IF(S17="","0",(IF(S17<AI17,1,IF(S17>#REF!,1,0)))) -> 0 | AM17: =IF(T17="","0",(IF(T17<AI17,1,IF(T17>#REF!,1,0)))) -> 0 | AR17: Location Change | AS17: 1.01 | AU17: No
V18: X | AB18: 0 | AC18: 0 | AJ18: =IF(Q18="","0",(IF(P18<AI18,1,IF(Q18>#REF!,1,0)))) -> 0 | AK18: =IF(R18="","0",(IF(R18<AI18,1,IF(R18>#REF!,1,0)))) -> 0 | AL18: =IF(S18="","0",(IF(S18<AI18,1,IF(S18>#REF!,1,0)))) -> 0 | AM18: =IF(T18="","0",(IF(T18<AI18,1,IF(T18>#REF!,1,0)))) -> 0 | AR18: New Part | AS18: 1.015 | AU18: N/A
V19: X | AB19: 0 | AC19: 0 | AJ19: =IF(Q19="","0",(IF(P19<AI19,1,IF(Q19>#REF!,1,0)))) -> 0 | AK19: =IF(R19="","0",(IF(R19<AI19,1,IF(R19>#REF!,1,0)))) -> 0 | AL19: =IF(S19="","0",(IF(S19<AI19,1,IF(S19>#REF!,1,0)))) -> 0 | AM19: =IF(T19="","0",(IF(T19<AI19,1,IF(T19>#REF!,1,0)))) -> 0 | AR19: New Supplier | AS19: 1.015 | AU19: Inspek.-typ eing.
V20: X | AB20: 0 | AC20: 0 | AJ20: =IF(Q20="","0",(IF(P20<AI20,1,IF(Q20>#REF!,1,0)))) -> 0 | AK20: =IF(R20="","0",(IF(R20<AI20,1,IF(R20>#REF!,1,0)))) -> 0 | AL20: =IF(S20="","0",(IF(S20<AI20,1,IF(S20>#REF!,1,0)))) -> 0 | AM20: =IF(T20="","0",(IF(T20<AI20,1,IF(T20>#REF!,1,0)))) -> 0 | AR20: New Process/Tech. | AU20: Erstes Teil
V21: X | AB21: 0 | AC21: 0 | AJ21: =IF(Q21="","0",(IF(P21<AI21,1,IF(Q21>#REF!,1,0)))) -> 0 | AK21: =IF(R21="","0",(IF(R21<AI21,1,IF(R21>#REF!,1,0)))) -> 0 | AL21: =IF(S21="","0",(IF(S21<AI21,1,IF(S21>#REF!,1,0)))) -> 0 | AM21: =IF(T21="","0",(IF(T21<AI21,1,IF(T21>#REF!,1,0)))) -> 0 | AR21: Drawing Revision | AU21: Vollständiges Muster
V22: X | AB22: 0 | AC22: 0 | AJ22: =IF(Q22="","0",(IF(P22<AI22,1,IF(Q22>#REF!,1,0)))) -> 0 | AK22: =IF(R22="","0",(IF(R22<AI22,1,IF(R22>#REF!,1,0)))) -> 0 | AL22: =IF(S22="","0",(IF(S22<AI22,1,IF(S22>#REF!,1,0)))) -> 0 | AM22: =IF(T22="","0",(IF(T22<AI22,1,IF(T22>#REF!,1,0)))) -> 0 | AR22: New/Modified Tooling | AU22: Messanfrage
V23: X | AB23: 0 | AC23: 0 | AJ23: =IF(Q23="","0",(IF(P23<AI23,1,IF(Q23>#REF!,1,0)))) -> 0 | AK23: =IF(R23="","0",(IF(R23<AI23,1,IF(R23>#REF!,1,0)))) -> 0 | AL23: =IF(S23="","0",(IF(S23<AI23,1,IF(S23>#REF!,1,0)))) -> 0 | AM23: =IF(T23="","0",(IF(T23<AI23,1,IF(T23>#REF!,1,0)))) -> 0 | AR23: Tooling Upgrade
V24: X | AB24: 0 | AC24: 0 | AJ24: =IF(Q24="","0",(IF(P24<AI24,1,IF(Q24>#REF!,1,0)))) -> 0 | AK24: =IF(R24="","0",(IF(R24<AI24,1,IF(R24>#REF!,1,0)))) -> 0 | AL24: =IF(S24="","0",(IF(S24<AI24,1,IF(S24>#REF!,1,0)))) -> 0 | AM24: =IF(T24="","0",(IF(T24<AI24,1,IF(T24>#REF!,1,0)))) -> 0 | AR24: Tooling Xfer
V25: X | AB25: 0 | AC25: 0 | AJ25: =IF(Q25="","0",(IF(P25<AI25,1,IF(Q25>#REF!,1,0)))) -> 0 | AK25: =IF(R25="","0",(IF(R25<AI25,1,IF(R25>#REF!,1,0)))) -> 0 | AL25: =IF(S25="","0",(IF(S25<AI25,1,IF(S25>#REF!,1,0)))) -> 0 | AM25: =IF(T25="","0",(IF(T25<AI25,1,IF(T25>#REF!,1,0)))) -> 0 | AR25: Chg of Supplier
V26: X | AB26: 0 | AC26: 0 | AJ26: =IF(Q26="","0",(IF(P26<AI26,1,IF(Q26>#REF!,1,0)))) -> 0 | AK26: =IF(R26="","0",(IF(R26<AI26,1,IF(R26>#REF!,1,0)))) -> 0 | AL26: =IF(S26="","0",(IF(S26<AI26,1,IF(S26>#REF!,1,0)))) -> 0 | AM26: =IF(T26="","0",(IF(T26<AI26,1,IF(T26>#REF!,1,0)))) -> 0 | AR26: Tooling Reactivated
V27: X | AB27: 0 | AC27: 0 | AJ27: =IF(Q27="","0",(IF(P27<AI27,1,IF(Q27>#REF!,1,0)))) -> 0 | AK27: =IF(R27="","0",(IF(R27<AI27,1,IF(R27>#REF!,1,0)))) -> 0 | AL27: =IF(S27="","0",(IF(S27<AI27,1,IF(S27>#REF!,1,0)))) -> 0 | AM27: =IF(T27="","0",(IF(T27<AI27,1,IF(T27>#REF!,1,0)))) -> 0 | AR27: Chg of Insp Method
V28: X | AB28: 0 | AC28: 0 | AJ28: =IF(Q28="","0",(IF(P28<AI28,1,IF(Q28>#REF!,1,0)))) -> 0 | AK28: =IF(R28="","0",(IF(R28<AI28,1,IF(R28>#REF!,1,0)))) -> 0 | AL28: =IF(S28="","0",(IF(S28<AI28,1,IF(S28>#REF!,1,0)))) -> 0 | AM28: =IF(T28="","0",(IF(T28<AI28,1,IF(T28>#REF!,1,0)))) -> 0 | AR28: New raw Mat'l
V29: X | AB29: 0 | AC29: 0 | AJ29: =IF(Q29="","0",(IF(P29<AI29,1,IF(Q29>#REF!,1,0)))) -> 0 | AK29: =IF(R29="","0",(IF(R29<AI29,1,IF(R29>#REF!,1,0)))) -> 0 | AL29: =IF(S29="","0",(IF(S29<AI29,1,IF(S29>#REF!,1,0)))) -> 0 | AM29: =IF(T29="","0",(IF(T29<AI29,1,IF(T29>#REF!,1,0)))) -> 0 | AR29: Chg in Appear Attritubes
V30: X | AB30: 0 | AC30: 0 | AJ30: =IF(Q30="","0",(IF(P30<AI30,1,IF(Q30>#REF!,1,0)))) -> 0 | AK30: =IF(R30="","0",(IF(R30<AI30,1,IF(R30>#REF!,1,0)))) -> 0 | AL30: =IF(S30="","0",(IF(S30<AI30,1,IF(S30>#REF!,1,0)))) -> 0 | AM30: =IF(T30="","0",(IF(T30<AI30,1,IF(T30>#REF!,1,0)))) -> 0 | AR30: Process Change
V31: X | AB31: 0 | AC31: 0 | AJ31: =IF(Q31="","0",(IF(P31<AI31,1,IF(Q31>#REF!,1,0)))) -> 0 | AK31: =IF(R31="","0",(IF(R31<AI31,1,IF(R31>#REF!,1,0)))) -> 0 | AL31: =IF(S31="","0",(IF(S31<AI31,1,IF(S31>#REF!,1,0)))) -> 0 | AM31: =IF(T31="","0",(IF(T31<AI31,1,IF(T31>#REF!,1,0)))) -> 0 | AR31: Receiving Inspection
V32: X | AB32: 0 | AC32: 0 | AJ32: =IF(Q32="","0",(IF(P32<AI32,1,IF(Q32>#REF!,1,0)))) -> 0 | AK32: =IF(R32="","0",(IF(R32<AI32,1,IF(R32>#REF!,1,0)))) -> 0 | AL32: =IF(S32="","0",(IF(S32<AI32,1,IF(S32>#REF!,1,0)))) -> 0 | AM32: =IF(T32="","0",(IF(T32<AI32,1,IF(T32>#REF!,1,0)))) -> 0 | AR32: See Notes Section
V33: X | AB33: 0 | AC33: 0 | AJ33: =IF(Q33="","0",(IF(P33<AI33,1,IF(Q33>#REF!,1,0)))) -> 0 | AK33: =IF(R33="","0",(IF(R33<AI33,1,IF(R33>#REF!,1,0)))) -> 0 | AL33: =IF(S33="","0",(IF(S33<AI33,1,IF(S33>#REF!,1,0)))) -> 0 | AM33: =IF(T33="","0",(IF(T33<AI33,1,IF(T33>#REF!,1,0)))) -> 0
V34: X | AB34: 0 | AC34: 0 | AJ34: =IF(Q34="","0",(IF(P34<AI34,1,IF(Q34>#REF!,1,0)))) -> 0 | AK34: =IF(R34="","0",(IF(R34<AI34,1,IF(R34>#REF!,1,0)))) -> 0 | AL34: =IF(S34="","0",(IF(S34<AI34,1,IF(S34>#REF!,1,0)))) -> 0 | AM34: =IF(T34="","0",(IF(T34<AI34,1,IF(T34>#REF!,1,0)))) -> 0 | AR34: Ball Micrometer
V35: X | AB35: 0 | AC35: 0 | AJ35: =IF(Q35="","0",(IF(P35<AI35,1,IF(Q35>#REF!,1,0)))) -> 0 | AK35: =IF(R35="","0",(IF(R35<AI35,1,IF(R35>#REF!,1,0)))) -> 0 | AL35: =IF(S35="","0",(IF(S35<AI35,1,IF(S35>#REF!,1,0)))) -> 0 | AM35: =IF(T35="","0",(IF(T35<AI35,1,IF(T35>#REF!,1,0)))) -> 0 | AR35: Caliper
V36: X | AB36: 0 | AC36: 0 | AJ36: =IF(Q36="","0",(IF(P36<AI36,1,IF(Q36>#REF!,1,0)))) -> 0 | AK36: =IF(R36="","0",(IF(R36<AI36,1,IF(R36>#REF!,1,0)))) -> 0 | AL36: =IF(S36="","0",(IF(S36<AI36,1,IF(S36>#REF!,1,0)))) -> 0 | AM36: =IF(T36="","0",(IF(T36<AI36,1,IF(T36>#REF!,1,0)))) -> 0 | AR36: CMM
V37: X | AB37: 0 | AC37: 0 | AJ37: =IF(Q37="","0",(IF(P37<AI37,1,IF(Q37>#REF!,1,0)))) -> 0 | AK37: =IF(R37="","0",(IF(R37<AI37,1,IF(R37>#REF!,1,0)))) -> 0 | AL37: =IF(S37="","0",(IF(S37<AI37,1,IF(S37>#REF!,1,0)))) -> 0 | AM37: =IF(T37="","0",(IF(T37<AI37,1,IF(T37>#REF!,1,0)))) -> 0 | AR37: Digital Height Gage
V38: X | AB38: 0 | AC38: 0 | AJ38: =IF(Q38="","0",(IF(P38<AI38,1,IF(Q38>#REF!,1,0)))) -> 0 | AK38: =IF(R38="","0",(IF(R38<AI38,1,IF(R38>#REF!,1,0)))) -> 0 | AL38: =IF(S38="","0",(IF(S38<AI38,1,IF(S38>#REF!,1,0)))) -> 0 | AM38: =IF(T38="","0",(IF(T38<AI38,1,IF(T38>#REF!,1,0)))) -> 0 | AR38: Feeler Gage
V39: X | AB39: 0 | AC39: 0 | AJ39: =IF(Q39="","0",(IF(P39<AI39,1,IF(Q39>#REF!,1,0)))) -> 0 | AK39: =IF(R39="","0",(IF(R39<AI39,1,IF(R39>#REF!,1,0)))) -> 0 | AL39: =IF(S39="","0",(IF(S39<AI39,1,IF(S39>#REF!,1,0)))) -> 0 | AM39: =IF(T39="","0",(IF(T39<AI39,1,IF(T39>#REF!,1,0)))) -> 0 | AR39: Functional Gage
V40: X | AB40: 0 | AC40: 0 | AJ40: =IF(Q40="","0",(IF(P40<AI40,1,IF(Q40>#REF!,1,0)))) -> 0 | AK40: =IF(R40="","0",(IF(R40<AI40,1,IF(R40>#REF!,1,0)))) -> 0 | AL40: =IF(S40="","0",(IF(S40<AI40,1,IF(S40>#REF!,1,0)))) -> 0 | AM40: =IF(T40="","0",(IF(T40<AI40,1,IF(T40>#REF!,1,0)))) -> 0 | AR40: Gage Block(s)
V41: X | AB41: 0 | AC41: 0 | AJ41: =IF(Q41="","0",(IF(P41<AI41,1,IF(Q41>#REF!,1,0)))) -> 0 | AK41: =IF(R41="","0",(IF(R41<AI41,1,IF(R41>#REF!,1,0)))) -> 0 | AL41: =IF(S41="","0",(IF(S41<AI41,1,IF(S41>#REF!,1,0)))) -> 0 | AM41: =IF(T41="","0",(IF(T41<AI41,1,IF(T41>#REF!,1,0)))) -> 0 | AR41: Gage Pin(s)
V42: X | AB42: 0 | AC42: 0 | AJ42: =IF(Q42="","0",(IF(P42<AI42,1,IF(Q42>#REF!,1,0)))) -> 0 | AK42: =IF(R42="","0",(IF(R42<AI42,1,IF(R42>#REF!,1,0)))) -> 0 | AL42: =IF(S42="","0",(IF(S42<AI42,1,IF(S42>#REF!,1,0)))) -> 0 | AM42: =IF(T42="","0",(IF(T42<AI42,1,IF(T42>#REF!,1,0)))) -> 0 | AR42: Height Gage & 90° Std
V43: X | AB43: 0 | AC43: 0 | AJ43: =IF(Q43="","0",(IF(P43<AI43,1,IF(Q43>#REF!,1,0)))) -> 0 | AK43: =IF(R43="","0",(IF(R43<AI43,1,IF(R43>#REF!,1,0)))) -> 0 | AL43: =IF(S43="","0",(IF(S43<AI43,1,IF(S43>#REF!,1,0)))) -> 0 | AM43: =IF(T43="","0",(IF(T43<AI43,1,IF(T43>#REF!,1,0)))) -> 0 | AR43: Height Gage & Indicator
V44: X | AB44: 0 | AC44: 0 | AJ44: =IF(Q44="","0",(IF(P44<AI44,1,IF(Q44>#REF!,1,0)))) -> 0 | AK44: =IF(R44="","0",(IF(R44<AI44,1,IF(R44>#REF!,1,0)))) -> 0 | AL44: =IF(S44="","0",(IF(S44<AI44,1,IF(S44>#REF!,1,0)))) -> 0 | AM44: =IF(T44="","0",(IF(T44<AI44,1,IF(T44>#REF!,1,0)))) -> 0 | AR44: Inside Micrometer
V45: X | AB45: 0 | AC45: 0 | AJ45: =IF(Q45="","0",(IF(P45<AI45,1,IF(Q45>#REF!,1,0)))) -> 0 | AK45: =IF(R45="","0",(IF(R45<AI45,1,IF(R45>#REF!,1,0)))) -> 0 | AL45: =IF(S45="","0",(IF(S45<AI45,1,IF(S45>#REF!,1,0)))) -> 0 | AM45: =IF(T45="","0",(IF(T45<AI45,1,IF(T45>#REF!,1,0)))) -> 0 | AR45: Optical Comparator
V46: X | AB46: 0 | AC46: 0 | AJ46: =IF(Q46="","0",(IF(P46<AI46,1,IF(Q46>#REF!,1,0)))) -> 0 | AK46: =IF(R46="","0",(IF(R46<AI46,1,IF(R46>#REF!,1,0)))) -> 0 | AL46: =IF(S46="","0",(IF(S46<AI46,1,IF(S46>#REF!,1,0)))) -> 0 | AM46: =IF(T46="","0",(IF(T46<AI46,1,IF(T46>#REF!,1,0)))) -> 0 | AR46: Outside Mic & Thd Wire
V47: X | AB47: 0 | AC47: 0 | AJ47: =IF(Q47="","0",(IF(P47<AI47,1,IF(Q47>#REF!,1,0)))) -> 0 | AK47: =IF(R47="","0",(IF(R47<AI47,1,IF(R47>#REF!,1,0)))) -> 0 | AL47: =IF(S47="","0",(IF(S47<AI47,1,IF(S47>#REF!,1,0)))) -> 0 | AM47: =IF(T47="","0",(IF(T47<AI47,1,IF(T47>#REF!,1,0)))) -> 0 | AR47: Outside Micrometer
V48: X | AB48: 0 | AC48: 0 | AJ48: =IF(Q48="","0",(IF(P48<AI48,1,IF(Q48>#REF!,1,0)))) -> 0 | AK48: =IF(R48="","0",(IF(R48<AI48,1,IF(R48>#REF!,1,0)))) -> 0 | AL48: =IF(S48="","0",(IF(S48<AI48,1,IF(S48>#REF!,1,0)))) -> 0 | AM48: =IF(T48="","0",(IF(T48<AI48,1,IF(T48>#REF!,1,0)))) -> 0 | AR48: Radius Gage
V49: X | AB49: 0 | AC49: 0 | AJ49: =IF(Q49="","0",(IF(P49<AI49,1,IF(Q49>#REF!,1,0)))) -> 0 | AK49: =IF(R49="","0",(IF(R49<AI49,1,IF(R49>#REF!,1,0)))) -> 0 | AL49: =IF(S49="","0",(IF(S49<AI49,1,IF(S49>#REF!,1,0)))) -> 0 | AM49: =IF(T49="","0",(IF(T49<AI49,1,IF(T49>#REF!,1,0)))) -> 0 | AR49: Sine Bar & Indicator
V50: X | AB50: 0 | AC50: 0 | AJ50: =IF(Q50="","0",(IF(P50<AI50,1,IF(Q50>#REF!,1,0)))) -> 0 | AK50: =IF(R50="","0",(IF(R50<AI50,1,IF(R50>#REF!,1,0)))) -> 0 | AL50: =IF(S50="","0",(IF(S50<AI50,1,IF(S50>#REF!,1,0)))) -> 0 | AM50: =IF(T50="","0",(IF(T50<AI50,1,IF(T50>#REF!,1,0)))) -> 0 | AR50: Tape Measure
V51: X | AB51: 0 | AC51: 0 | AJ51: =IF(Q51="","0",(IF(P51<AI51,1,IF(Q51>#REF!,1,0)))) -> 0 | AK51: =IF(R51="","0",(IF(R51<AI51,1,IF(R51>#REF!,1,0)))) -> 0 | AL51: =IF(S51="","0",(IF(S51<AI51,1,IF(S51>#REF!,1,0)))) -> 0 | AM51: =IF(T51="","0",(IF(T51<AI51,1,IF(T51>#REF!,1,0)))) -> 0 | AR51: Thread Micrometers
V52: X | AB52: 0 | AC52: 0 | AJ52: =IF(Q52="","0",(IF(P52<AI52,1,IF(Q52>#REF!,1,0)))) -> 0 | AK52: =IF(R52="","0",(IF(R52<AI52,1,IF(R52>#REF!,1,0)))) -> 0 | AL52: =IF(S52="","0",(IF(S52<AI52,1,IF(S52>#REF!,1,0)))) -> 0 | AM52: =IF(T52="","0",(IF(T52<AI52,1,IF(T52>#REF!,1,0)))) -> 0 | AR52: Vision System
V53: X | AB53: 0 | AC53: 0 | AJ53: =IF(Q53="","0",(IF(P53<AI53,1,IF(Q53>#REF!,1,0)))) -> 0 | AK53: =IF(R53="","0",(IF(R53<AI53,1,IF(R53>#REF!,1,0)))) -> 0 | AL53: =IF(S53="","0",(IF(S53<AI53,1,IF(S53>#REF!,1,0)))) -> 0 | AM53: =IF(T53="","0",(IF(T53<AI53,1,IF(T53>#REF!,1,0)))) -> 0 | AR53: Visual
V54: X | AB54: 0 | AC54: 0 | AJ54: =IF(Q54="","0",(IF(P54<AI54,1,IF(Q54>#REF!,1,0)))) -> 0 | AK54: =IF(R54="","0",(IF(R54<AI54,1,IF(R54>#REF!,1,0)))) -> 0 | AL54: =IF(S54="","0",(IF(S54<AI54,1,IF(S54>#REF!,1,0)))) -> 0 | AM54: =IF(T54="","0",(IF(T54<AI54,1,IF(T54>#REF!,1,0)))) -> 0
V55: X | AB55: 0 | AC55: 0 | AJ55: =IF(Q55="","0",(IF(P55<AI55,1,IF(Q55>#REF!,1,0)))) -> 0 | AK55: =IF(R55="","0",(IF(R55<AI55,1,IF(R55>#REF!,1,0)))) -> 0 | AL55: =IF(S55="","0",(IF(S55<AI55,1,IF(S55>#REF!,1,0)))) -> 0 | AM55: =IF(T55="","0",(IF(T55<AI55,1,IF(T55>#REF!,1,0)))) -> 0
V56: X | AB56: 0 | AC56: 0 | AJ56: =IF(Q56="","0",(IF(P56<AI56,1,IF(Q56>#REF!,1,0)))) -> 0 | AK56: =IF(R56="","0",(IF(R56<AI56,1,IF(R56>#REF!,1,0)))) -> 0 | AL56: =IF(S56="","0",(IF(S56<AI56,1,IF(S56>#REF!,1,0)))) -> 0 | AM56: =IF(T56="","0",(IF(T56<AI56,1,IF(T56>#REF!,1,0)))) -> 0
V57: X | AB57: 0 | AC57: 0 | AJ57: =IF(Q57="","0",(IF(P57<AI57,1,IF(Q57>#REF!,1,0)))) -> 0 | AK57: =IF(R57="","0",(IF(R57<AI57,1,IF(R57>#REF!,1,0)))) -> 0 | AL57: =IF(S57="","0",(IF(S57<AI57,1,IF(S57>#REF!,1,0)))) -> 0 | AM57: =IF(T57="","0",(IF(T57<AI57,1,IF(T57>#REF!,1,0)))) -> 0
V58: X | AB58: 0 | AC58: 0 | AJ58: =IF(Q58="","0",(IF(P58<AI58,1,IF(Q58>#REF!,1,0)))) -> 0 | AK58: =IF(R58="","0",(IF(R58<AI58,1,IF(R58>#REF!,1,0)))) -> 0 | AL58: =IF(S58="","0",(IF(S58<AI58,1,IF(S58>#REF!,1,0)))) -> 0 | AM58: =IF(T58="","0",(IF(T58<AI58,1,IF(T58>#REF!,1,0)))) -> 0
V59: X | AB59: 0 | AC59: 0 | AJ59: =IF(Q59="","0",(IF(P59<AI59,1,IF(Q59>#REF!,1,0)))) -> 0 | AK59: =IF(R59="","0",(IF(R59<AI59,1,IF(R59>#REF!,1,0)))) -> 0 | AL59: =IF(S59="","0",(IF(S59<AI59,1,IF(S59>#REF!,1,0)))) -> 0 | AM59: =IF(T59="","0",(IF(T59<AI59,1,IF(T59>#REF!,1,0)))) -> 0
V60: X | AB60: 0 | AC60: 0 | AJ60: =IF(Q60="","0",(IF(P60<AI60,1,IF(Q60>#REF!,1,0)))) -> 0 | AK60: =IF(R60="","0",(IF(R60<AI60,1,IF(R60>#REF!,1,0)))) -> 0 | AL60: =IF(S60="","0",(IF(S60<AI60,1,IF(S60>#REF!,1,0)))) -> 0 | AM60: =IF(T60="","0",(IF(T60<AI60,1,IF(T60>#REF!,1,0)))) -> 0
V61: X | AB61: 0 | AC61: 0 | AJ61: =IF(Q61="","0",(IF(P61<AI61,1,IF(Q61>#REF!,1,0)))) -> 0 | AK61: =IF(R61="","0",(IF(R61<AI61,1,IF(R61>#REF!,1,0)))) -> 0 | AL61: =IF(S61="","0",(IF(S61<AI61,1,IF(S61>#REF!,1,0)))) -> 0 | AM61: =IF(T61="","0",(IF(T61<AI61,1,IF(T61>#REF!,1,0)))) -> 0
V62: X | AB62: 0 | AC62: 0 | AJ62: =IF(Q62="","0",(IF(P62<AI62,1,IF(Q62>#REF!,1,0)))) -> 0 | AK62: =IF(R62="","0",(IF(R62<AI62,1,IF(R62>#REF!,1,0)))) -> 0 | AL62: =IF(S62="","0",(IF(S62<AI62,1,IF(S62>#REF!,1,0)))) -> 0 | AM62: =IF(T62="","0",(IF(T62<AI62,1,IF(T62>#REF!,1,0)))) -> 0
V63: X | AB63: 0 | AC63: 0 | AJ63: =IF(Q63="","0",(IF(P63<AI63,1,IF(Q63>#REF!,1,0)))) -> 0 | AK63: =IF(R63="","0",(IF(R63<AI63,1,IF(R63>#REF!,1,0)))) -> 0 | AL63: =IF(S63="","0",(IF(S63<AI63,1,IF(S63>#REF!,1,0)))) -> 0 | AM63: =IF(T63="","0",(IF(T63<AI63,1,IF(T63>#REF!,1,0)))) -> 0
V64: X | AB64: 0 | AC64: 0 | AJ64: =IF(Q64="","0",(IF(P64<AI64,1,IF(Q64>#REF!,1,0)))) -> 0 | AK64: =IF(R64="","0",(IF(R64<AI64,1,IF(R64>#REF!,1,0)))) -> 0 | AL64: =IF(S64="","0",(IF(S64<AI64,1,IF(S64>#REF!,1,0)))) -> 0 | AM64: =IF(T64="","0",(IF(T64<AI64,1,IF(T64>#REF!,1,0)))) -> 0
V65: X | AB65: 0 | AC65: 0 | AJ65: =IF(Q65="","0",(IF(P65<AI65,1,IF(Q65>#REF!,1,0)))) -> 0 | AK65: =IF(R65="","0",(IF(R65<AI65,1,IF(R65>#REF!,1,0)))) -> 0 | AL65: =IF(S65="","0",(IF(S65<AI65,1,IF(S65>#REF!,1,0)))) -> 0 | AM65: =IF(T65="","0",(IF(T65<AI65,1,IF(T65>#REF!,1,0)))) -> 0
V66: X | AB66: 0 | AC66: 0 | AJ66: =IF(Q66="","0",(IF(P66<AI66,1,IF(Q66>#REF!,1,0)))) -> 0 | AK66: =IF(R66="","0",(IF(R66<AI66,1,IF(R66>#REF!,1,0)))) -> 0 | AL66: =IF(S66="","0",(IF(S66<AI66,1,IF(S66>#REF!,1,0)))) -> 0 | AM66: =IF(T66="","0",(IF(T66<AI66,1,IF(T66>#REF!,1,0)))) -> 0
V67: X | AB67: 0 | AC67: 0 | AJ67: =IF(Q67="","0",(IF(P67<AI67,1,IF(Q67>#REF!,1,0)))) -> 0 | AK67: =IF(R67="","0",(IF(R67<AI67,1,IF(R67>#REF!,1,0)))) -> 0 | AL67: =IF(S67="","0",(IF(S67<AI67,1,IF(S67>#REF!,1,0)))) -> 0 | AM67: =IF(T67="","0",(IF(T67<AI67,1,IF(T67>#REF!,1,0)))) -> 0
V68: X | AB68: 0 | AC68: 0 | AJ68: =IF(Q68="","0",(IF(P68<AI68,1,IF(Q68>#REF!,1,0)))) -> 0 | AK68: =IF(R68="","0",(IF(R68<AI68,1,IF(R68>#REF!,1,0)))) -> 0 | AL68: =IF(S68="","0",(IF(S68<AI68,1,IF(S68>#REF!,1,0)))) -> 0 | AM68: =IF(T68="","0",(IF(T68<AI68,1,IF(T68>#REF!,1,0)))) -> 0
V69: X | AB69: 0 | AC69: 0 | AJ69: =IF(Q69="","0",(IF(P69<AI69,1,IF(Q69>#REF!,1,0)))) -> 0 | AK69: =IF(R69="","0",(IF(R69<AI69,1,IF(R69>#REF!,1,0)))) -> 0 | AL69: =IF(S69="","0",(IF(S69<AI69,1,IF(S69>#REF!,1,0)))) -> 0 | AM69: =IF(T69="","0",(IF(T69<AI69,1,IF(T69>#REF!,1,0)))) -> 0
V70: X | AB70: 0 | AC70: 0 | AJ70: =IF(Q70="","0",(IF(P70<AI70,1,IF(Q70>#REF!,1,0)))) -> 0 | AK70: =IF(R70="","0",(IF(R70<AI70,1,IF(R70>#REF!,1,0)))) -> 0 | AL70: =IF(S70="","0",(IF(S70<AI70,1,IF(S70>#REF!,1,0)))) -> 0 | AM70: =IF(T70="","0",(IF(T70<AI70,1,IF(T70>#REF!,1,0)))) -> 0
V71: X | AB71: 0 | AC71: 0 | AJ71: =IF(Q71="","0",(IF(P71<AI71,1,IF(Q71>#REF!,1,0)))) -> 0 | AK71: =IF(R71="","0",(IF(R71<AI71,1,IF(R71>#REF!,1,0)))) -> 0 | AL71: =IF(S71="","0",(IF(S71<AI71,1,IF(S71>#REF!,1,0)))) -> 0 | AM71: =IF(T71="","0",(IF(T71<AI71,1,IF(T71>#REF!,1,0)))) -> 0
V72: X | AB72: 0 | AC72: 0 | AJ72: =IF(Q72="","0",(IF(P72<AI72,1,IF(Q72>#REF!,1,0)))) -> 0 | AK72: =IF(R72="","0",(IF(R72<AI72,1,IF(R72>#REF!,1,0)))) -> 0 | AL72: =IF(S72="","0",(IF(S72<AI72,1,IF(S72>#REF!,1,0)))) -> 0 | AM72: =IF(T72="","0",(IF(T72<AI72,1,IF(T72>#REF!,1,0)))) -> 0
V73: X | AB73: 0 | AC73: 0 | AJ73: =IF(Q73="","0",(IF(P73<AI73,1,IF(Q73>#REF!,1,0)))) -> 0 | AK73: =IF(R73="","0",(IF(R73<AI73,1,IF(R73>#REF!,1,0)))) -> 0 | AL73: =IF(S73="","0",(IF(S73<AI73,1,IF(S73>#REF!,1,0)))) -> 0 | AM73: =IF(T73="","0",(IF(T73<AI73,1,IF(T73>#REF!,1,0)))) -> 0
V74: X | AB74: 0 | AC74: 0 | AJ74: =IF(Q74="","0",(IF(P74<AI74,1,IF(Q74>#REF!,1,0)))) -> 0 | AK74: =IF(R74="","0",(IF(R74<AI74,1,IF(R74>#REF!,1,0)))) -> 0 | AL74: =IF(S74="","0",(IF(S74<AI74,1,IF(S74>#REF!,1,0)))) -> 0 | AM74: =IF(T74="","0",(IF(T74<AI74,1,IF(T74>#REF!,1,0)))) -> 0
V75: X | AB75: 0 | AC75: 0 | AJ75: =IF(Q75="","0",(IF(P75<AI75,1,IF(Q75>#REF!,1,0)))) -> 0 | AK75: =IF(R75="","0",(IF(R75<AI75,1,IF(R75>#REF!,1,0)))) -> 0 | AL75: =IF(S75="","0",(IF(S75<AI75,1,IF(S75>#REF!,1,0)))) -> 0 | AM75: =IF(T75="","0",(IF(T75<AI75,1,IF(T75>#REF!,1,0)))) -> 0
V76: X | AB76: 0 | AC76: 0 | AJ76: =IF(Q76="","0",(IF(P76<AI76,1,IF(Q76>#REF!,1,0)))) -> 0 | AK76: =IF(R76="","0",(IF(R76<AI76,1,IF(R76>#REF!,1,0)))) -> 0 | AL76: =IF(S76="","0",(IF(S76<AI76,1,IF(S76>#REF!,1,0)))) -> 0 | AM76: =IF(T76="","0",(IF(T76<AI76,1,IF(T76>#REF!,1,0)))) -> 0
V77: X | AB77: 0 | AC77: 0 | AJ77: =IF(Q77="","0",(IF(P77<AI77,1,IF(Q77>#REF!,1,0)))) -> 0 | AK77: =IF(R77="","0",(IF(R77<AI77,1,IF(R77>#REF!,1,0)))) -> 0 | AL77: =IF(S77="","0",(IF(S77<AI77,1,IF(S77>#REF!,1,0)))) -> 0 | AM77: =IF(T77="","0",(IF(T77<AI77,1,IF(T77>#REF!,1,0)))) -> 0
V78: X | AB78: 0 | AC78: 0 | AJ78: =IF(Q78="","0",(IF(P78<AI78,1,IF(Q78>#REF!,1,0)))) -> 0 | AK78: =IF(R78="","0",(IF(R78<AI78,1,IF(R78>#REF!,1,0)))) -> 0 | AL78: =IF(S78="","0",(IF(S78<AI78,1,IF(S78>#REF!,1,0)))) -> 0 | AM78: =IF(T78="","0",(IF(T78<AI78,1,IF(T78>#REF!,1,0)))) -> 0
V79: =IF(I79="Ref","",(IF(I79="Basic","",(IF(P79="P","X",(IF(P79="F","",IF(MAX(P79:T79)>(H79+J79),"",IF(MIN(P79:T79)<(H79+I79),"","X"))))))))) -> X | W79: =IF(I79="Ref","",(IF(I79="Basic","",(IF(P79="P","",IF(P79="F","X",IF(MAX(P79:T79)>(H79+J79),"X",IF(MIN(P79:T79)<(H79+I79),"X","")))))))) ->  | AB79: 0 | AC79: 0 | AF79: =(AB79-AD79)/(3*AE79) ->  | AG79: =(AD79-AC79)/(3*AE79) ->  | AH79: =(AB79-AC79)/(6*AE79) ->  | AJ79: =IF(Q79="","0",(IF(P79<AI79,1,IF(Q79>#REF!,1,0)))) -> 0 | AK79: =IF(R79="","0",(IF(R79<AI79,1,IF(R79>#REF!,1,0)))) -> 0 | AL79: =IF(S79="","0",(IF(S79<AI79,1,IF(S79>#REF!,1,0)))) -> 0 | AM79: =IF(T79="","0",(IF(T79<AI79,1,IF(T79>#REF!,1,0)))) -> 0
V80: X | AB80: =H80+J80 -> 0 | AC80: =H80+I80 -> 0 | AD80: =AVERAGE(P80:T80) ->  | AE80: =_xlfn.STDEV.S(P80,Q80,R80,S80,T80) ->  | AI80: =MIN(AF80, AG80) ->  | AJ80: =IF(Q80="","0",(IF(P80<AI80,1,IF(Q80>#REF!,1,0)))) -> 0 | AK80: =IF(R80="","0",(IF(R80<AI80,1,IF(R80>#REF!,1,0)))) -> 0 | AL80: =IF(S80="","0",(IF(S80<AI80,1,IF(S80>#REF!,1,0)))) -> 0 | AM80: =IF(T80="","0",(IF(T80<AI80,1,IF(T80>#REF!,1,0)))) -> 0
V81: X | AB81: 0 | AC81: 0 | AJ81: =IF(Q81="","0",(IF(P81<AI81,1,IF(Q81>#REF!,1,0)))) -> 0 | AK81: =IF(R81="","0",(IF(R81<AI81,1,IF(R81>#REF!,1,0)))) -> 0 | AL81: =IF(S81="","0",(IF(S81<AI81,1,IF(S81>#REF!,1,0)))) -> 0 | AM81: =IF(T81="","0",(IF(T81<AI81,1,IF(T81>#REF!,1,0)))) -> 0
V82: X | AB82: 0 | AC82: 0 | AJ82: =IF(Q82="","0",(IF(P82<AI82,1,IF(Q82>#REF!,1,0)))) -> 0 | AK82: =IF(R82="","0",(IF(R82<AI82,1,IF(R82>#REF!,1,0)))) -> 0 | AL82: =IF(S82="","0",(IF(S82<AI82,1,IF(S82>#REF!,1,0)))) -> 0 | AM82: =IF(T82="","0",(IF(T82<AI82,1,IF(T82>#REF!,1,0)))) -> 0
V83: X | AB83: 0 | AC83: 0 | AJ83: =IF(Q83="","0",(IF(P83<AI83,1,IF(Q83>#REF!,1,0)))) -> 0 | AK83: =IF(R83="","0",(IF(R83<AI83,1,IF(R83>#REF!,1,0)))) -> 0 | AL83: =IF(S83="","0",(IF(S83<AI83,1,IF(S83>#REF!,1,0)))) -> 0 | AM83: =IF(T83="","0",(IF(T83<AI83,1,IF(T83>#REF!,1,0)))) -> 0
V84: X | AB84: 0 | AC84: 0 | AJ84: =IF(Q84="","0",(IF(P84<AI84,1,IF(Q84>#REF!,1,0)))) -> 0 | AK84: =IF(R84="","0",(IF(R84<AI84,1,IF(R84>#REF!,1,0)))) -> 0 | AL84: =IF(S84="","0",(IF(S84<AI84,1,IF(S84>#REF!,1,0)))) -> 0 | AM84: =IF(T84="","0",(IF(T84<AI84,1,IF(T84>#REF!,1,0)))) -> 0
V85: X | AB85: 0 | AC85: 0 | AJ85: =IF(Q85="","0",(IF(P85<AI85,1,IF(Q85>#REF!,1,0)))) -> 0 | AK85: =IF(R85="","0",(IF(R85<AI85,1,IF(R85>#REF!,1,0)))) -> 0 | AL85: =IF(S85="","0",(IF(S85<AI85,1,IF(S85>#REF!,1,0)))) -> 0 | AM85: =IF(T85="","0",(IF(T85<AI85,1,IF(T85>#REF!,1,0)))) -> 0
V86: X | AB86: 0 | AC86: 0 | AJ86: =IF(Q86="","0",(IF(P86<AI86,1,IF(Q86>#REF!,1,0)))) -> 0 | AK86: =IF(R86="","0",(IF(R86<AI86,1,IF(R86>#REF!,1,0)))) -> 0 | AL86: =IF(S86="","0",(IF(S86<AI86,1,IF(S86>#REF!,1,0)))) -> 0 | AM86: =IF(T86="","0",(IF(T86<AI86,1,IF(T86>#REF!,1,0)))) -> 0
V87: X | AB87: 0 | AC87: 0 | AJ87: =IF(Q87="","0",(IF(P87<AI87,1,IF(Q87>#REF!,1,0)))) -> 0 | AK87: =IF(R87="","0",(IF(R87<AI87,1,IF(R87>#REF!,1,0)))) -> 0 | AL87: =IF(S87="","0",(IF(S87<AI87,1,IF(S87>#REF!,1,0)))) -> 0 | AM87: =IF(T87="","0",(IF(T87<AI87,1,IF(T87>#REF!,1,0)))) -> 0
V88: X | AB88: 0 | AC88: 0 | AJ88: =IF(Q88="","0",(IF(P88<AI88,1,IF(Q88>#REF!,1,0)))) -> 0 | AK88: =IF(R88="","0",(IF(R88<AI88,1,IF(R88>#REF!,1,0)))) -> 0 | AL88: =IF(S88="","0",(IF(S88<AI88,1,IF(S88>#REF!,1,0)))) -> 0 | AM88: =IF(T88="","0",(IF(T88<AI88,1,IF(T88>#REF!,1,0)))) -> 0
V89: X | AB89: 0 | AC89: 0 | AJ89: =IF(Q89="","0",(IF(P89<AI89,1,IF(Q89>#REF!,1,0)))) -> 0 | AK89: =IF(R89="","0",(IF(R89<AI89,1,IF(R89>#REF!,1,0)))) -> 0 | AL89: =IF(S89="","0",(IF(S89<AI89,1,IF(S89>#REF!,1,0)))) -> 0 | AM89: =IF(T89="","0",(IF(T89<AI89,1,IF(T89>#REF!,1,0)))) -> 0
V90: X | AB90: 0 | AC90: 0 | AJ90: =IF(Q90="","0",(IF(P90<AI90,1,IF(Q90>#REF!,1,0)))) -> 0 | AK90: =IF(R90="","0",(IF(R90<AI90,1,IF(R90>#REF!,1,0)))) -> 0 | AL90: =IF(S90="","0",(IF(S90<AI90,1,IF(S90>#REF!,1,0)))) -> 0 | AM90: =IF(T90="","0",(IF(T90<AI90,1,IF(T90>#REF!,1,0)))) -> 0
V91: X | AB91: 0 | AC91: 0 | AJ91: =IF(Q91="","0",(IF(P91<AI91,1,IF(Q91>#REF!,1,0)))) -> 0 | AK91: =IF(R91="","0",(IF(R91<AI91,1,IF(R91>#REF!,1,0)))) -> 0 | AL91: =IF(S91="","0",(IF(S91<AI91,1,IF(S91>#REF!,1,0)))) -> 0 | AM91: =IF(T91="","0",(IF(T91<AI91,1,IF(T91>#REF!,1,0)))) -> 0
V92: X | AB92: 0 | AC92: 0 | AJ92: =IF(Q92="","0",(IF(P92<AI92,1,IF(Q92>#REF!,1,0)))) -> 0 | AK92: =IF(R92="","0",(IF(R92<AI92,1,IF(R92>#REF!,1,0)))) -> 0 | AL92: =IF(S92="","0",(IF(S92<AI92,1,IF(S92>#REF!,1,0)))) -> 0 | AM92: =IF(T92="","0",(IF(T92<AI92,1,IF(T92>#REF!,1,0)))) -> 0
V93: X | AB93: 0 | AC93: 0 | AJ93: =IF(Q93="","0",(IF(P93<AI93,1,IF(Q93>#REF!,1,0)))) -> 0 | AK93: =IF(R93="","0",(IF(R93<AI93,1,IF(R93>#REF!,1,0)))) -> 0 | AL93: =IF(S93="","0",(IF(S93<AI93,1,IF(S93>#REF!,1,0)))) -> 0 | AM93: =IF(T93="","0",(IF(T93<AI93,1,IF(T93>#REF!,1,0)))) -> 0
V94: X | AB94: 0 | AC94: 0 | AJ94: =IF(Q94="","0",(IF(P94<AI94,1,IF(Q94>#REF!,1,0)))) -> 0 | AK94: =IF(R94="","0",(IF(R94<AI94,1,IF(R94>#REF!,1,0)))) -> 0 | AL94: =IF(S94="","0",(IF(S94<AI94,1,IF(S94>#REF!,1,0)))) -> 0 | AM94: =IF(T94="","0",(IF(T94<AI94,1,IF(T94>#REF!,1,0)))) -> 0
V95: X | AB95: 0 | AC95: 0 | AJ95: =IF(Q95="","0",(IF(P95<AI95,1,IF(Q95>#REF!,1,0)))) -> 0 | AK95: =IF(R95="","0",(IF(R95<AI95,1,IF(R95>#REF!,1,0)))) -> 0 | AL95: =IF(S95="","0",(IF(S95<AI95,1,IF(S95>#REF!,1,0)))) -> 0 | AM95: =IF(T95="","0",(IF(T95<AI95,1,IF(T95>#REF!,1,0)))) -> 0
V96: X | AB96: 0 | AC96: 0 | AJ96: =IF(Q96="","0",(IF(P96<AI96,1,IF(Q96>#REF!,1,0)))) -> 0 | AK96: =IF(R96="","0",(IF(R96<AI96,1,IF(R96>#REF!,1,0)))) -> 0 | AL96: =IF(S96="","0",(IF(S96<AI96,1,IF(S96>#REF!,1,0)))) -> 0 | AM96: =IF(T96="","0",(IF(T96<AI96,1,IF(T96>#REF!,1,0)))) -> 0
V97: X | AB97: 0 | AC97: 0 | AJ97: =IF(Q97="","0",(IF(P97<AI97,1,IF(Q97>#REF!,1,0)))) -> 0 | AK97: =IF(R97="","0",(IF(R97<AI97,1,IF(R97>#REF!,1,0)))) -> 0 | AL97: =IF(S97="","0",(IF(S97<AI97,1,IF(S97>#REF!,1,0)))) -> 0 | AM97: =IF(T97="","0",(IF(T97<AI97,1,IF(T97>#REF!,1,0)))) -> 0
V98: X | AB98: 0 | AC98: 0 | AJ98: =IF(Q98="","0",(IF(P98<AI98,1,IF(Q98>#REF!,1,0)))) -> 0 | AK98: =IF(R98="","0",(IF(R98<AI98,1,IF(R98>#REF!,1,0)))) -> 0 | AL98: =IF(S98="","0",(IF(S98<AI98,1,IF(S98>#REF!,1,0)))) -> 0 | AM98: =IF(T98="","0",(IF(T98<AI98,1,IF(T98>#REF!,1,0)))) -> 0
V99: X | AB99: 0 | AC99: 0 | AJ99: =IF(Q99="","0",(IF(P99<AI99,1,IF(Q99>#REF!,1,0)))) -> 0 | AK99: =IF(R99="","0",(IF(R99<AI99,1,IF(R99>#REF!,1,0)))) -> 0 | AL99: =IF(S99="","0",(IF(S99<AI99,1,IF(S99>#REF!,1,0)))) -> 0 | AM99: =IF(T99="","0",(IF(T99<AI99,1,IF(T99>#REF!,1,0)))) -> 0
V100: X | AB100: 0 | AC100: 0 | AJ100: =IF(Q100="","0",(IF(P100<AI100,1,IF(Q100>#REF!,1,0)))) -> 0 | AK100: =IF(R100="","0",(IF(R100<AI100,1,IF(R100>#REF!,1,0)))) -> 0 | AL100: =IF(S100="","0",(IF(S100<AI100,1,IF(S100>#REF!,1,0)))) -> 0 | AM100: =IF(T100="","0",(IF(T100<AI100,1,IF(T100>#REF!,1,0)))) -> 0
V101: X | AB101: 0 | AC101: 0 | AJ101: =IF(Q101="","0",(IF(P101<AI101,1,IF(Q101>#REF!,1,0)))) -> 0 | AK101: =IF(R101="","0",(IF(R101<AI101,1,IF(R101>#REF!,1,0)))) -> 0 | AL101: =IF(S101="","0",(IF(S101<AI101,1,IF(S101>#REF!,1,0)))) -> 0 | AM101: =IF(T101="","0",(IF(T101<AI101,1,IF(T101>#REF!,1,0)))) -> 0
V102: X | AB102: 0 | AC102: 0 | AJ102: =IF(Q102="","0",(IF(P102<AI102,1,IF(Q102>#REF!,1,0)))) -> 0 | AK102: =IF(R102="","0",(IF(R102<AI102,1,IF(R102>#REF!,1,0)))) -> 0 | AL102: =IF(S102="","0",(IF(S102<AI102,1,IF(S102>#REF!,1,0)))) -> 0 | AM102: =IF(T102="","0",(IF(T102<AI102,1,IF(T102>#REF!,1,0)))) -> 0
V103: X | AB103: 0 | AC103: 0 | AJ103: =IF(Q103="","0",(IF(P103<AI103,1,IF(Q103>#REF!,1,0)))) -> 0 | AK103: =IF(R103="","0",(IF(R103<AI103,1,IF(R103>#REF!,1,0)))) -> 0 | AL103: =IF(S103="","0",(IF(S103<AI103,1,IF(S103>#REF!,1,0)))) -> 0 | AM103: =IF(T103="","0",(IF(T103<AI103,1,IF(T103>#REF!,1,0)))) -> 0
V104: X | AB104: 0 | AC104: 0 | AJ104: =IF(Q104="","0",(IF(P104<AI104,1,IF(Q104>#REF!,1,0)))) -> 0 | AK104: =IF(R104="","0",(IF(R104<AI104,1,IF(R104>#REF!,1,0)))) -> 0 | AL104: =IF(S104="","0",(IF(S104<AI104,1,IF(S104>#REF!,1,0)))) -> 0 | AM104: =IF(T104="","0",(IF(T104<AI104,1,IF(T104>#REF!,1,0)))) -> 0
V105: X | AB105: 0 | AC105: 0 | AJ105: =IF(Q105="","0",(IF(P105<AI105,1,IF(Q105>#REF!,1,0)))) -> 0 | AK105: =IF(R105="","0",(IF(R105<AI105,1,IF(R105>#REF!,1,0)))) -> 0 | AL105: =IF(S105="","0",(IF(S105<AI105,1,IF(S105>#REF!,1,0)))) -> 0 | AM105: =IF(T105="","0",(IF(T105<AI105,1,IF(T105>#REF!,1,0)))) -> 0
V106: X | AB106: 0 | AC106: 0 | AJ106: =IF(Q106="","0",(IF(P106<AI106,1,IF(Q106>#REF!,1,0)))) -> 0 | AK106: =IF(R106="","0",(IF(R106<AI106,1,IF(R106>#REF!,1,0)))) -> 0 | AL106: =IF(S106="","0",(IF(S106<AI106,1,IF(S106>#REF!,1,0)))) -> 0 | AM106: =IF(T106="","0",(IF(T106<AI106,1,IF(T106>#REF!,1,0)))) -> 0
V107: X | AB107: 0 | AC107: 0 | AJ107: =IF(Q107="","0",(IF(P107<AI107,1,IF(Q107>#REF!,1,0)))) -> 0 | AK107: =IF(R107="","0",(IF(R107<AI107,1,IF(R107>#REF!,1,0)))) -> 0 | AL107: =IF(S107="","0",(IF(S107<AI107,1,IF(S107>#REF!,1,0)))) -> 0 | AM107: =IF(T107="","0",(IF(T107<AI107,1,IF(T107>#REF!,1,0)))) -> 0
V108: X | AB108: 0 | AC108: 0 | AJ108: =IF(Q108="","0",(IF(P108<AI108,1,IF(Q108>#REF!,1,0)))) -> 0 | AK108: =IF(R108="","0",(IF(R108<AI108,1,IF(R108>#REF!,1,0)))) -> 0 | AL108: =IF(S108="","0",(IF(S108<AI108,1,IF(S108>#REF!,1,0)))) -> 0 | AM108: =IF(T108="","0",(IF(T108<AI108,1,IF(T108>#REF!,1,0)))) -> 0
V109: X | AB109: 0 | AC109: 0 | AJ109: =IF(Q109="","0",(IF(P109<AI109,1,IF(Q109>#REF!,1,0)))) -> 0 | AK109: =IF(R109="","0",(IF(R109<AI109,1,IF(R109>#REF!,1,0)))) -> 0 | AL109: =IF(S109="","0",(IF(S109<AI109,1,IF(S109>#REF!,1,0)))) -> 0 | AM109: =IF(T109="","0",(IF(T109<AI109,1,IF(T109>#REF!,1,0)))) -> 0
V110: X | AB110: 0 | AC110: 0 | AJ110: =IF(Q110="","0",(IF(P110<AI110,1,IF(Q110>#REF!,1,0)))) -> 0 | AK110: =IF(R110="","0",(IF(R110<AI110,1,IF(R110>#REF!,1,0)))) -> 0 | AL110: =IF(S110="","0",(IF(S110<AI110,1,IF(S110>#REF!,1,0)))) -> 0 | AM110: =IF(T110="","0",(IF(T110<AI110,1,IF(T110>#REF!,1,0)))) -> 0
V111: X | AB111: 0 | AC111: 0 | AJ111: =IF(Q111="","0",(IF(P111<AI111,1,IF(Q111>#REF!,1,0)))) -> 0 | AK111: =IF(R111="","0",(IF(R111<AI111,1,IF(R111>#REF!,1,0)))) -> 0 | AL111: =IF(S111="","0",(IF(S111<AI111,1,IF(S111>#REF!,1,0)))) -> 0 | AM111: =IF(T111="","0",(IF(T111<AI111,1,IF(T111>#REF!,1,0)))) -> 0
V112: X | AB112: 0 | AC112: 0 | AJ112: =IF(Q112="","0",(IF(P112<AI112,1,IF(Q112>#REF!,1,0)))) -> 0 | AK112: =IF(R112="","0",(IF(R112<AI112,1,IF(R112>#REF!,1,0)))) -> 0 | AL112: =IF(S112="","0",(IF(S112<AI112,1,IF(S112>#REF!,1,0)))) -> 0 | AM112: =IF(T112="","0",(IF(T112<AI112,1,IF(T112>#REF!,1,0)))) -> 0
V113: X | AB113: 0 | AC113: 0 | AJ113: =IF(Q113="","0",(IF(P113<AI113,1,IF(Q113>#REF!,1,0)))) -> 0 | AK113: =IF(R113="","0",(IF(R113<AI113,1,IF(R113>#REF!,1,0)))) -> 0 | AL113: =IF(S113="","0",(IF(S113<AI113,1,IF(S113>#REF!,1,0)))) -> 0 | AM113: =IF(T113="","0",(IF(T113<AI113,1,IF(T113>#REF!,1,0)))) -> 0
V114: X | AB114: 0 | AC114: 0 | AJ114: =IF(Q114="","0",(IF(P114<AI114,1,IF(Q114>#REF!,1,0)))) -> 0 | AK114: =IF(R114="","0",(IF(R114<AI114,1,IF(R114>#REF!,1,0)))) -> 0 | AL114: =IF(S114="","0",(IF(S114<AI114,1,IF(S114>#REF!,1,0)))) -> 0 | AM114: =IF(T114="","0",(IF(T114<AI114,1,IF(T114>#REF!,1,0)))) -> 0
V115: X | AB115: 0 | AC115: 0 | AJ115: =IF(Q115="","0",(IF(P115<AI115,1,IF(Q115>#REF!,1,0)))) -> 0 | AK115: =IF(R115="","0",(IF(R115<AI115,1,IF(R115>#REF!,1,0)))) -> 0 | AL115: =IF(S115="","0",(IF(S115<AI115,1,IF(S115>#REF!,1,0)))) -> 0 | AM115: =IF(T115="","0",(IF(T115<AI115,1,IF(T115>#REF!,1,0)))) -> 0
V116: X | AB116: 0 | AC116: 0 | AJ116: =IF(Q116="","0",(IF(P116<AI116,1,IF(Q116>#REF!,1,0)))) -> 0 | AK116: =IF(R116="","0",(IF(R116<AI116,1,IF(R116>#REF!,1,0)))) -> 0 | AL116: =IF(S116="","0",(IF(S116<AI116,1,IF(S116>#REF!,1,0)))) -> 0 | AM116: =IF(T116="","0",(IF(T116<AI116,1,IF(T116>#REF!,1,0)))) -> 0
V117: X | AB117: 0 | AC117: 0 | AJ117: =IF(Q117="","0",(IF(P117<AI117,1,IF(Q117>#REF!,1,0)))) -> 0 | AK117: =IF(R117="","0",(IF(R117<AI117,1,IF(R117>#REF!,1,0)))) -> 0 | AL117: =IF(S117="","0",(IF(S117<AI117,1,IF(S117>#REF!,1,0)))) -> 0 | AM117: =IF(T117="","0",(IF(T117<AI117,1,IF(T117>#REF!,1,0)))) -> 0
V118: X | AB118: 0 | AC118: 0 | AJ118: =IF(Q118="","0",(IF(P118<AI118,1,IF(Q118>#REF!,1,0)))) -> 0 | AK118: =IF(R118="","0",(IF(R118<AI118,1,IF(R118>#REF!,1,0)))) -> 0 | AL118: =IF(S118="","0",(IF(S118<AI118,1,IF(S118>#REF!,1,0)))) -> 0 | AM118: =IF(T118="","0",(IF(T118<AI118,1,IF(T118>#REF!,1,0)))) -> 0
V119: X | AB119: 0 | AC119: 0 | AJ119: =IF(Q119="","0",(IF(P119<AI119,1,IF(Q119>#REF!,1,0)))) -> 0 | AK119: =IF(R119="","0",(IF(R119<AI119,1,IF(R119>#REF!,1,0)))) -> 0 | AL119: =IF(S119="","0",(IF(S119<AI119,1,IF(S119>#REF!,1,0)))) -> 0 | AM119: =IF(T119="","0",(IF(T119<AI119,1,IF(T119>#REF!,1,0)))) -> 0
V120: X | AB120: 0 | AC120: 0 | AJ120: =IF(Q120="","0",(IF(P120<AI120,1,IF(Q120>#REF!,1,0)))) -> 0 | AK120: =IF(R120="","0",(IF(R120<AI120,1,IF(R120>#REF!,1,0)))) -> 0 | AL120: =IF(S120="","0",(IF(S120<AI120,1,IF(S120>#REF!,1,0)))) -> 0 | AM120: =IF(T120="","0",(IF(T120<AI120,1,IF(T120>#REF!,1,0)))) -> 0
V121: X | AB121: 0 | AC121: 0 | AJ121: =IF(Q121="","0",(IF(P121<AI121,1,IF(Q121>#REF!,1,0)))) -> 0 | AK121: =IF(R121="","0",(IF(R121<AI121,1,IF(R121>#REF!,1,0)))) -> 0 | AL121: =IF(S121="","0",(IF(S121<AI121,1,IF(S121>#REF!,1,0)))) -> 0 | AM121: =IF(T121="","0",(IF(T121<AI121,1,IF(T121>#REF!,1,0)))) -> 0
V122: X | AB122: 0 | AC122: 0 | AJ122: =IF(Q122="","0",(IF(P122<AI122,1,IF(Q122>#REF!,1,0)))) -> 0 | AK122: =IF(R122="","0",(IF(R122<AI122,1,IF(R122>#REF!,1,0)))) -> 0 | AL122: =IF(S122="","0",(IF(S122<AI122,1,IF(S122>#REF!,1,0)))) -> 0 | AM122: =IF(T122="","0",(IF(T122<AI122,1,IF(T122>#REF!,1,0)))) -> 0
V123: X | AB123: 0 | AC123: 0 | AJ123: =IF(Q123="","0",(IF(P123<AI123,1,IF(Q123>#REF!,1,0)))) -> 0 | AK123: =IF(R123="","0",(IF(R123<AI123,1,IF(R123>#REF!,1,0)))) -> 0 | AL123: =IF(S123="","0",(IF(S123<AI123,1,IF(S123>#REF!,1,0)))) -> 0 | AM123: =IF(T123="","0",(IF(T123<AI123,1,IF(T123>#REF!,1,0)))) -> 0
V124: X | AB124: 0 | AC124: 0 | AJ124: =IF(Q124="","0",(IF(P124<AI124,1,IF(Q124>#REF!,1,0)))) -> 0 | AK124: =IF(R124="","0",(IF(R124<AI124,1,IF(R124>#REF!,1,0)))) -> 0 | AL124: =IF(S124="","0",(IF(S124<AI124,1,IF(S124>#REF!,1,0)))) -> 0 | AM124: =IF(T124="","0",(IF(T124<AI124,1,IF(T124>#REF!,1,0)))) -> 0
V125: X | AB125: 0 | AC125: 0 | AJ125: =IF(Q125="","0",(IF(P125<AI125,1,IF(Q125>#REF!,1,0)))) -> 0 | AK125: =IF(R125="","0",(IF(R125<AI125,1,IF(R125>#REF!,1,0)))) -> 0 | AL125: =IF(S125="","0",(IF(S125<AI125,1,IF(S125>#REF!,1,0)))) -> 0 | AM125: =IF(T125="","0",(IF(T125<AI125,1,IF(T125>#REF!,1,0)))) -> 0
V126: X | AB126: 0 | AC126: 0 | AJ126: =IF(Q126="","0",(IF(P126<AI126,1,IF(Q126>#REF!,1,0)))) -> 0 | AK126: =IF(R126="","0",(IF(R126<AI126,1,IF(R126>#REF!,1,0)))) -> 0 | AL126: =IF(S126="","0",(IF(S126<AI126,1,IF(S126>#REF!,1,0)))) -> 0 | AM126: =IF(T126="","0",(IF(T126<AI126,1,IF(T126>#REF!,1,0)))) -> 0
V127: X | AB127: 0 | AC127: 0 | AJ127: =IF(Q127="","0",(IF(P127<AI127,1,IF(Q127>#REF!,1,0)))) -> 0 | AK127: =IF(R127="","0",(IF(R127<AI127,1,IF(R127>#REF!,1,0)))) -> 0 | AL127: =IF(S127="","0",(IF(S127<AI127,1,IF(S127>#REF!,1,0)))) -> 0 | AM127: =IF(T127="","0",(IF(T127<AI127,1,IF(T127>#REF!,1,0)))) -> 0
V128: X | AB128: 0 | AC128: 0 | AJ128: =IF(Q128="","0",(IF(P128<AI128,1,IF(Q128>#REF!,1,0)))) -> 0 | AK128: =IF(R128="","0",(IF(R128<AI128,1,IF(R128>#REF!,1,0)))) -> 0 | AL128: =IF(S128="","0",(IF(S128<AI128,1,IF(S128>#REF!,1,0)))) -> 0 | AM128: =IF(T128="","0",(IF(T128<AI128,1,IF(T128>#REF!,1,0)))) -> 0
V129: X | AB129: 0 | AC129: 0 | AJ129: =IF(Q129="","0",(IF(P129<AI129,1,IF(Q129>#REF!,1,0)))) -> 0 | AK129: =IF(R129="","0",(IF(R129<AI129,1,IF(R129>#REF!,1,0)))) -> 0 | AL129: =IF(S129="","0",(IF(S129<AI129,1,IF(S129>#REF!,1,0)))) -> 0 | AM129: =IF(T129="","0",(IF(T129<AI129,1,IF(T129>#REF!,1,0)))) -> 0
V130: X | AB130: 0 | AC130: 0 | AJ130: =IF(Q130="","0",(IF(P130<AI130,1,IF(Q130>#REF!,1,0)))) -> 0 | AK130: =IF(R130="","0",(IF(R130<AI130,1,IF(R130>#REF!,1,0)))) -> 0 | AL130: =IF(S130="","0",(IF(S130<AI130,1,IF(S130>#REF!,1,0)))) -> 0 | AM130: =IF(T130="","0",(IF(T130<AI130,1,IF(T130>#REF!,1,0)))) -> 0
V131: X | AB131: 0 | AC131: 0 | AJ131: =IF(Q131="","0",(IF(P131<AI131,1,IF(Q131>#REF!,1,0)))) -> 0 | AK131: =IF(R131="","0",(IF(R131<AI131,1,IF(R131>#REF!,1,0)))) -> 0 | AL131: =IF(S131="","0",(IF(S131<AI131,1,IF(S131>#REF!,1,0)))) -> 0 | AM131: =IF(T131="","0",(IF(T131<AI131,1,IF(T131>#REF!,1,0)))) -> 0
V132: X | AB132: 0 | AC132: 0 | AJ132: =IF(Q132="","0",(IF(P132<AI132,1,IF(Q132>#REF!,1,0)))) -> 0 | AK132: =IF(R132="","0",(IF(R132<AI132,1,IF(R132>#REF!,1,0)))) -> 0 | AL132: =IF(S132="","0",(IF(S132<AI132,1,IF(S132>#REF!,1,0)))) -> 0 | AM132: =IF(T132="","0",(IF(T132<AI132,1,IF(T132>#REF!,1,0)))) -> 0
V133: X | AB133: 0 | AC133: 0 | AJ133: =IF(Q133="","0",(IF(P133<AI133,1,IF(Q133>#REF!,1,0)))) -> 0 | AK133: =IF(R133="","0",(IF(R133<AI133,1,IF(R133>#REF!,1,0)))) -> 0 | AL133: =IF(S133="","0",(IF(S133<AI133,1,IF(S133>#REF!,1,0)))) -> 0 | AM133: =IF(T133="","0",(IF(T133<AI133,1,IF(T133>#REF!,1,0)))) -> 0
V134: X | AB134: 0 | AC134: 0 | AJ134: =IF(Q134="","0",(IF(P134<AI134,1,IF(Q134>#REF!,1,0)))) -> 0 | AK134: =IF(R134="","0",(IF(R134<AI134,1,IF(R134>#REF!,1,0)))) -> 0 | AL134: =IF(S134="","0",(IF(S134<AI134,1,IF(S134>#REF!,1,0)))) -> 0 | AM134: =IF(T134="","0",(IF(T134<AI134,1,IF(T134>#REF!,1,0)))) -> 0
V135: X | AB135: 0 | AC135: 0 | AJ135: =IF(Q135="","0",(IF(P135<AI135,1,IF(Q135>#REF!,1,0)))) -> 0 | AK135: =IF(R135="","0",(IF(R135<AI135,1,IF(R135>#REF!,1,0)))) -> 0 | AL135: =IF(S135="","0",(IF(S135<AI135,1,IF(S135>#REF!,1,0)))) -> 0 | AM135: =IF(T135="","0",(IF(T135<AI135,1,IF(T135>#REF!,1,0)))) -> 0
V136: X | AB136: 0 | AC136: 0 | AJ136: =IF(Q136="","0",(IF(P136<AI136,1,IF(Q136>#REF!,1,0)))) -> 0 | AK136: =IF(R136="","0",(IF(R136<AI136,1,IF(R136>#REF!,1,0)))) -> 0 | AL136: =IF(S136="","0",(IF(S136<AI136,1,IF(S136>#REF!,1,0)))) -> 0 | AM136: =IF(T136="","0",(IF(T136<AI136,1,IF(T136>#REF!,1,0)))) -> 0
V137: X | AB137: 0 | AC137: 0 | AJ137: =IF(Q137="","0",(IF(P137<AI137,1,IF(Q137>#REF!,1,0)))) -> 0 | AK137: =IF(R137="","0",(IF(R137<AI137,1,IF(R137>#REF!,1,0)))) -> 0 | AL137: =IF(S137="","0",(IF(S137<AI137,1,IF(S137>#REF!,1,0)))) -> 0 | AM137: =IF(T137="","0",(IF(T137<AI137,1,IF(T137>#REF!,1,0)))) -> 0
V138: X | AB138: 0 | AC138: 0 | AJ138: =IF(Q138="","0",(IF(P138<AI138,1,IF(Q138>#REF!,1,0)))) -> 0 | AK138: =IF(R138="","0",(IF(R138<AI138,1,IF(R138>#REF!,1,0)))) -> 0 | AL138: =IF(S138="","0",(IF(S138<AI138,1,IF(S138>#REF!,1,0)))) -> 0 | AM138: =IF(T138="","0",(IF(T138<AI138,1,IF(T138>#REF!,1,0)))) -> 0
V139: X | AB139: 0 | AC139: 0 | AJ139: =IF(Q139="","0",(IF(P139<AI139,1,IF(Q139>#REF!,1,0)))) -> 0 | AK139: =IF(R139="","0",(IF(R139<AI139,1,IF(R139>#REF!,1,0)))) -> 0 | AL139: =IF(S139="","0",(IF(S139<AI139,1,IF(S139>#REF!,1,0)))) -> 0 | AM139: =IF(T139="","0",(IF(T139<AI139,1,IF(T139>#REF!,1,0)))) -> 0
V140: X | AB140: 0 | AC140: 0 | AJ140: =IF(Q140="","0",(IF(P140<AI140,1,IF(Q140>#REF!,1,0)))) -> 0 | AK140: =IF(R140="","0",(IF(R140<AI140,1,IF(R140>#REF!,1,0)))) -> 0 | AL140: =IF(S140="","0",(IF(S140<AI140,1,IF(S140>#REF!,1,0)))) -> 0 | AM140: =IF(T140="","0",(IF(T140<AI140,1,IF(T140>#REF!,1,0)))) -> 0
V141: X | AB141: 0 | AC141: 0 | AJ141: =IF(Q141="","0",(IF(P141<AI141,1,IF(Q141>#REF!,1,0)))) -> 0 | AK141: =IF(R141="","0",(IF(R141<AI141,1,IF(R141>#REF!,1,0)))) -> 0 | AL141: =IF(S141="","0",(IF(S141<AI141,1,IF(S141>#REF!,1,0)))) -> 0 | AM141: =IF(T141="","0",(IF(T141<AI141,1,IF(T141>#REF!,1,0)))) -> 0
V142: X | AB142: 0 | AC142: 0 | AJ142: =IF(Q142="","0",(IF(P142<AI142,1,IF(Q142>#REF!,1,0)))) -> 0 | AK142: =IF(R142="","0",(IF(R142<AI142,1,IF(R142>#REF!,1,0)))) -> 0 | AL142: =IF(S142="","0",(IF(S142<AI142,1,IF(S142>#REF!,1,0)))) -> 0 | AM142: =IF(T142="","0",(IF(T142<AI142,1,IF(T142>#REF!,1,0)))) -> 0
V143: =IF(I143="Ref","",(IF(I143="Basic","",(IF(P143="P","X",(IF(P143="F","",IF(MAX(P143:T143)>(H143+J143),"",IF(MIN(P143:T143)<(H143+I143),"","X"))))))))) -> X | W143: =IF(I143="Ref","",(IF(I143="Basic","",(IF(P143="P","",IF(P143="F","X",IF(MAX(P143:T143)>(H143+J143),"X",IF(MIN(P143:T143)<(H143+I143),"X","")))))))) ->  | AB143: 0 | AC143: 0 | AF143: =(AB143-AD143)/(3*AE143) ->  | AG143: =(AD143-AC143)/(3*AE143) ->  | AH143: =(AB143-AC143)/(6*AE143) ->  | AJ143: =IF(Q143="","0",(IF(P143<AI143,1,IF(Q143>#REF!,1,0)))) -> 0 | AK143: =IF(R143="","0",(IF(R143<AI143,1,IF(R143>#REF!,1,0)))) -> 0 | AL143: =IF(S143="","0",(IF(S143<AI143,1,IF(S143>#REF!,1,0)))) -> 0 | AM143: =IF(T143="","0",(IF(T143<AI143,1,IF(T143>#REF!,1,0)))) -> 0
V144: X | AB144: =H144+J144 -> 0 | AC144: =H144+I144 -> 0 | AD144: =AVERAGE(P144:T144) ->  | AE144: =_xlfn.STDEV.S(P144,Q144,R144,S144,T144) ->  | AI144: =MIN(AF144, AG144) ->  | AJ144: =IF(Q144="","0",(IF(P144<AI144,1,IF(Q144>#REF!,1,0)))) -> 0 | AK144: =IF(R144="","0",(IF(R144<AI144,1,IF(R144>#REF!,1,0)))) -> 0 | AL144: =IF(S144="","0",(IF(S144<AI144,1,IF(S144>#REF!,1,0)))) -> 0 | AM144: =IF(T144="","0",(IF(T144<AI144,1,IF(T144>#REF!,1,0)))) -> 0
V145: X | AB145: 0 | AC145: 0 | AJ145: =IF(Q145="","0",(IF(P145<AI145,1,IF(Q145>#REF!,1,0)))) -> 0 | AK145: =IF(R145="","0",(IF(R145<AI145,1,IF(R145>#REF!,1,0)))) -> 0 | AL145: =IF(S145="","0",(IF(S145<AI145,1,IF(S145>#REF!,1,0)))) -> 0 | AM145: =IF(T145="","0",(IF(T145<AI145,1,IF(T145>#REF!,1,0)))) -> 0
V146: X | AB146: 0 | AC146: 0 | AJ146: =IF(Q146="","0",(IF(P146<AI146,1,IF(Q146>#REF!,1,0)))) -> 0 | AK146: =IF(R146="","0",(IF(R146<AI146,1,IF(R146>#REF!,1,0)))) -> 0 | AL146: =IF(S146="","0",(IF(S146<AI146,1,IF(S146>#REF!,1,0)))) -> 0 | AM146: =IF(T146="","0",(IF(T146<AI146,1,IF(T146>#REF!,1,0)))) -> 0
V147: X | AB147: 0 | AC147: 0 | AJ147: =IF(Q147="","0",(IF(P147<AI147,1,IF(Q147>#REF!,1,0)))) -> 0 | AK147: =IF(R147="","0",(IF(R147<AI147,1,IF(R147>#REF!,1,0)))) -> 0 | AL147: =IF(S147="","0",(IF(S147<AI147,1,IF(S147>#REF!,1,0)))) -> 0 | AM147: =IF(T147="","0",(IF(T147<AI147,1,IF(T147>#REF!,1,0)))) -> 0
V148: X | AB148: 0 | AC148: 0 | AJ148: =IF(Q148="","0",(IF(P148<AI148,1,IF(Q148>#REF!,1,0)))) -> 0 | AK148: =IF(R148="","0",(IF(R148<AI148,1,IF(R148>#REF!,1,0)))) -> 0 | AL148: =IF(S148="","0",(IF(S148<AI148,1,IF(S148>#REF!,1,0)))) -> 0 | AM148: =IF(T148="","0",(IF(T148<AI148,1,IF(T148>#REF!,1,0)))) -> 0
V149: X | AB149: 0 | AC149: 0 | AJ149: =IF(Q149="","0",(IF(P149<AI149,1,IF(Q149>#REF!,1,0)))) -> 0 | AK149: =IF(R149="","0",(IF(R149<AI149,1,IF(R149>#REF!,1,0)))) -> 0 | AL149: =IF(S149="","0",(IF(S149<AI149,1,IF(S149>#REF!,1,0)))) -> 0 | AM149: =IF(T149="","0",(IF(T149<AI149,1,IF(T149>#REF!,1,0)))) -> 0
V150: X | AB150: 0 | AC150: 0 | AJ150: =IF(Q150="","0",(IF(P150<AI150,1,IF(Q150>#REF!,1,0)))) -> 0 | AK150: =IF(R150="","0",(IF(R150<AI150,1,IF(R150>#REF!,1,0)))) -> 0 | AL150: =IF(S150="","0",(IF(S150<AI150,1,IF(S150>#REF!,1,0)))) -> 0 | AM150: =IF(T150="","0",(IF(T150<AI150,1,IF(T150>#REF!,1,0)))) -> 0
V151: X | AB151: 0 | AC151: 0 | AJ151: =IF(Q151="","0",(IF(P151<AI151,1,IF(Q151>#REF!,1,0)))) -> 0 | AK151: =IF(R151="","0",(IF(R151<AI151,1,IF(R151>#REF!,1,0)))) -> 0 | AL151: =IF(S151="","0",(IF(S151<AI151,1,IF(S151>#REF!,1,0)))) -> 0 | AM151: =IF(T151="","0",(IF(T151<AI151,1,IF(T151>#REF!,1,0)))) -> 0
V152: X | AB152: 0 | AC152: 0 | AJ152: =IF(Q152="","0",(IF(P152<AI152,1,IF(Q152>#REF!,1,0)))) -> 0 | AK152: =IF(R152="","0",(IF(R152<AI152,1,IF(R152>#REF!,1,0)))) -> 0 | AL152: =IF(S152="","0",(IF(S152<AI152,1,IF(S152>#REF!,1,0)))) -> 0 | AM152: =IF(T152="","0",(IF(T152<AI152,1,IF(T152>#REF!,1,0)))) -> 0
V153: X | AB153: 0 | AC153: 0 | AJ153: =IF(Q153="","0",(IF(P153<AI153,1,IF(Q153>#REF!,1,0)))) -> 0 | AK153: =IF(R153="","0",(IF(R153<AI153,1,IF(R153>#REF!,1,0)))) -> 0 | AL153: =IF(S153="","0",(IF(S153<AI153,1,IF(S153>#REF!,1,0)))) -> 0 | AM153: =IF(T153="","0",(IF(T153<AI153,1,IF(T153>#REF!,1,0)))) -> 0
V154: X | AB154: 0 | AC154: 0 | AJ154: =IF(Q154="","0",(IF(P154<AI154,1,IF(Q154>#REF!,1,0)))) -> 0 | AK154: =IF(R154="","0",(IF(R154<AI154,1,IF(R154>#REF!,1,0)))) -> 0 | AL154: =IF(S154="","0",(IF(S154<AI154,1,IF(S154>#REF!,1,0)))) -> 0 | AM154: =IF(T154="","0",(IF(T154<AI154,1,IF(T154>#REF!,1,0)))) -> 0
V155: X | AB155: 0 | AC155: 0 | AJ155: =IF(Q155="","0",(IF(P155<AI155,1,IF(Q155>#REF!,1,0)))) -> 0 | AK155: =IF(R155="","0",(IF(R155<AI155,1,IF(R155>#REF!,1,0)))) -> 0 | AL155: =IF(S155="","0",(IF(S155<AI155,1,IF(S155>#REF!,1,0)))) -> 0 | AM155: =IF(T155="","0",(IF(T155<AI155,1,IF(T155>#REF!,1,0)))) -> 0
V156: X | AB156: 0 | AC156: 0 | AJ156: =IF(Q156="","0",(IF(P156<AI156,1,IF(Q156>#REF!,1,0)))) -> 0 | AK156: =IF(R156="","0",(IF(R156<AI156,1,IF(R156>#REF!,1,0)))) -> 0 | AL156: =IF(S156="","0",(IF(S156<AI156,1,IF(S156>#REF!,1,0)))) -> 0 | AM156: =IF(T156="","0",(IF(T156<AI156,1,IF(T156>#REF!,1,0)))) -> 0
V157: X | AB157: 0 | AC157: 0 | AJ157: =IF(Q157="","0",(IF(P157<AI157,1,IF(Q157>#REF!,1,0)))) -> 0 | AK157: =IF(R157="","0",(IF(R157<AI157,1,IF(R157>#REF!,1,0)))) -> 0 | AL157: =IF(S157="","0",(IF(S157<AI157,1,IF(S157>#REF!,1,0)))) -> 0 | AM157: =IF(T157="","0",(IF(T157<AI157,1,IF(T157>#REF!,1,0)))) -> 0
V158: X | AB158: 0 | AC158: 0 | AJ158: =IF(Q158="","0",(IF(P158<AI158,1,IF(Q158>#REF!,1,0)))) -> 0 | AK158: =IF(R158="","0",(IF(R158<AI158,1,IF(R158>#REF!,1,0)))) -> 0 | AL158: =IF(S158="","0",(IF(S158<AI158,1,IF(S158>#REF!,1,0)))) -> 0 | AM158: =IF(T158="","0",(IF(T158<AI158,1,IF(T158>#REF!,1,0)))) -> 0
V159: X | AB159: 0 | AC159: 0 | AJ159: =IF(Q159="","0",(IF(P159<AI159,1,IF(Q159>#REF!,1,0)))) -> 0 | AK159: =IF(R159="","0",(IF(R159<AI159,1,IF(R159>#REF!,1,0)))) -> 0 | AL159: =IF(S159="","0",(IF(S159<AI159,1,IF(S159>#REF!,1,0)))) -> 0 | AM159: =IF(T159="","0",(IF(T159<AI159,1,IF(T159>#REF!,1,0)))) -> 0
V160: X | AB160: 0 | AC160: 0 | AJ160: =IF(Q160="","0",(IF(P160<AI160,1,IF(Q160>#REF!,1,0)))) -> 0 | AK160: =IF(R160="","0",(IF(R160<AI160,1,IF(R160>#REF!,1,0)))) -> 0 | AL160: =IF(S160="","0",(IF(S160<AI160,1,IF(S160>#REF!,1,0)))) -> 0 | AM160: =IF(T160="","0",(IF(T160<AI160,1,IF(T160>#REF!,1,0)))) -> 0
V161: X | AB161: 0 | AC161: 0 | AJ161: =IF(Q161="","0",(IF(P161<AI161,1,IF(Q161>#REF!,1,0)))) -> 0 | AK161: =IF(R161="","0",(IF(R161<AI161,1,IF(R161>#REF!,1,0)))) -> 0 | AL161: =IF(S161="","0",(IF(S161<AI161,1,IF(S161>#REF!,1,0)))) -> 0 | AM161: =IF(T161="","0",(IF(T161<AI161,1,IF(T161>#REF!,1,0)))) -> 0
V162: X | AB162: 0 | AC162: 0 | AJ162: =IF(Q162="","0",(IF(P162<AI162,1,IF(Q162>#REF!,1,0)))) -> 0 | AK162: =IF(R162="","0",(IF(R162<AI162,1,IF(R162>#REF!,1,0)))) -> 0 | AL162: =IF(S162="","0",(IF(S162<AI162,1,IF(S162>#REF!,1,0)))) -> 0 | AM162: =IF(T162="","0",(IF(T162<AI162,1,IF(T162>#REF!,1,0)))) -> 0
V163: X | AB163: 0 | AC163: 0 | AJ163: =IF(Q163="","0",(IF(P163<AI163,1,IF(Q163>#REF!,1,0)))) -> 0 | AK163: =IF(R163="","0",(IF(R163<AI163,1,IF(R163>#REF!,1,0)))) -> 0 | AL163: =IF(S163="","0",(IF(S163<AI163,1,IF(S163>#REF!,1,0)))) -> 0 | AM163: =IF(T163="","0",(IF(T163<AI163,1,IF(T163>#REF!,1,0)))) -> 0
V164: X | AB164: 0 | AC164: 0 | AJ164: =IF(Q164="","0",(IF(P164<AI164,1,IF(Q164>#REF!,1,0)))) -> 0 | AK164: =IF(R164="","0",(IF(R164<AI164,1,IF(R164>#REF!,1,0)))) -> 0 | AL164: =IF(S164="","0",(IF(S164<AI164,1,IF(S164>#REF!,1,0)))) -> 0 | AM164: =IF(T164="","0",(IF(T164<AI164,1,IF(T164>#REF!,1,0)))) -> 0
V165: X | AB165: 0 | AC165: 0 | AJ165: =IF(Q165="","0",(IF(P165<AI165,1,IF(Q165>#REF!,1,0)))) -> 0 | AK165: =IF(R165="","0",(IF(R165<AI165,1,IF(R165>#REF!,1,0)))) -> 0 | AL165: =IF(S165="","0",(IF(S165<AI165,1,IF(S165>#REF!,1,0)))) -> 0 | AM165: =IF(T165="","0",(IF(T165<AI165,1,IF(T165>#REF!,1,0)))) -> 0
V166: X | AB166: 0 | AC166: 0 | AJ166: =IF(Q166="","0",(IF(P166<AI166,1,IF(Q166>#REF!,1,0)))) -> 0 | AK166: =IF(R166="","0",(IF(R166<AI166,1,IF(R166>#REF!,1,0)))) -> 0 | AL166: =IF(S166="","0",(IF(S166<AI166,1,IF(S166>#REF!,1,0)))) -> 0 | AM166: =IF(T166="","0",(IF(T166<AI166,1,IF(T166>#REF!,1,0)))) -> 0
V167: X | AB167: 0 | AC167: 0 | AJ167: =IF(Q167="","0",(IF(P167<AI167,1,IF(Q167>#REF!,1,0)))) -> 0 | AK167: =IF(R167="","0",(IF(R167<AI167,1,IF(R167>#REF!,1,0)))) -> 0 | AL167: =IF(S167="","0",(IF(S167<AI167,1,IF(S167>#REF!,1,0)))) -> 0 | AM167: =IF(T167="","0",(IF(T167<AI167,1,IF(T167>#REF!,1,0)))) -> 0
V168: X | AB168: 0 | AC168: 0 | AJ168: =IF(Q168="","0",(IF(P168<AI168,1,IF(Q168>#REF!,1,0)))) -> 0 | AK168: =IF(R168="","0",(IF(R168<AI168,1,IF(R168>#REF!,1,0)))) -> 0 | AL168: =IF(S168="","0",(IF(S168<AI168,1,IF(S168>#REF!,1,0)))) -> 0 | AM168: =IF(T168="","0",(IF(T168<AI168,1,IF(T168>#REF!,1,0)))) -> 0
V169: X | AB169: 0 | AC169: 0 | AJ169: =IF(Q169="","0",(IF(P169<AI169,1,IF(Q169>#REF!,1,0)))) -> 0 | AK169: =IF(R169="","0",(IF(R169<AI169,1,IF(R169>#REF!,1,0)))) -> 0 | AL169: =IF(S169="","0",(IF(S169<AI169,1,IF(S169>#REF!,1,0)))) -> 0 | AM169: =IF(T169="","0",(IF(T169<AI169,1,IF(T169>#REF!,1,0)))) -> 0
V170: X | AB170: 0 | AC170: 0 | AJ170: =IF(Q170="","0",(IF(P170<AI170,1,IF(Q170>#REF!,1,0)))) -> 0 | AK170: =IF(R170="","0",(IF(R170<AI170,1,IF(R170>#REF!,1,0)))) -> 0 | AL170: =IF(S170="","0",(IF(S170<AI170,1,IF(S170>#REF!,1,0)))) -> 0 | AM170: =IF(T170="","0",(IF(T170<AI170,1,IF(T170>#REF!,1,0)))) -> 0
V171: X | AB171: 0 | AC171: 0 | AJ171: =IF(Q171="","0",(IF(P171<AI171,1,IF(Q171>#REF!,1,0)))) -> 0 | AK171: =IF(R171="","0",(IF(R171<AI171,1,IF(R171>#REF!,1,0)))) -> 0 | AL171: =IF(S171="","0",(IF(S171<AI171,1,IF(S171>#REF!,1,0)))) -> 0 | AM171: =IF(T171="","0",(IF(T171<AI171,1,IF(T171>#REF!,1,0)))) -> 0
V172: X | AB172: 0 | AC172: 0 | AJ172: =IF(Q172="","0",(IF(P172<AI172,1,IF(Q172>#REF!,1,0)))) -> 0 | AK172: =IF(R172="","0",(IF(R172<AI172,1,IF(R172>#REF!,1,0)))) -> 0 | AL172: =IF(S172="","0",(IF(S172<AI172,1,IF(S172>#REF!,1,0)))) -> 0 | AM172: =IF(T172="","0",(IF(T172<AI172,1,IF(T172>#REF!,1,0)))) -> 0
V173: X | AB173: 0 | AC173: 0 | AJ173: =IF(Q173="","0",(IF(P173<AI173,1,IF(Q173>#REF!,1,0)))) -> 0 | AK173: =IF(R173="","0",(IF(R173<AI173,1,IF(R173>#REF!,1,0)))) -> 0 | AL173: =IF(S173="","0",(IF(S173<AI173,1,IF(S173>#REF!,1,0)))) -> 0 | AM173: =IF(T173="","0",(IF(T173<AI173,1,IF(T173>#REF!,1,0)))) -> 0
V174: X | AB174: 0 | AC174: 0 | AJ174: =IF(Q174="","0",(IF(P174<AI174,1,IF(Q174>#REF!,1,0)))) -> 0 | AK174: =IF(R174="","0",(IF(R174<AI174,1,IF(R174>#REF!,1,0)))) -> 0 | AL174: =IF(S174="","0",(IF(S174<AI174,1,IF(S174>#REF!,1,0)))) -> 0 | AM174: =IF(T174="","0",(IF(T174<AI174,1,IF(T174>#REF!,1,0)))) -> 0
V175: X | AB175: 0 | AC175: 0 | AJ175: =IF(Q175="","0",(IF(P175<AI175,1,IF(Q175>#REF!,1,0)))) -> 0 | AK175: =IF(R175="","0",(IF(R175<AI175,1,IF(R175>#REF!,1,0)))) -> 0 | AL175: =IF(S175="","0",(IF(S175<AI175,1,IF(S175>#REF!,1,0)))) -> 0 | AM175: =IF(T175="","0",(IF(T175<AI175,1,IF(T175>#REF!,1,0)))) -> 0
V176: X | AB176: 0 | AC176: 0 | AJ176: =IF(Q176="","0",(IF(P176<AI176,1,IF(Q176>#REF!,1,0)))) -> 0 | AK176: =IF(R176="","0",(IF(R176<AI176,1,IF(R176>#REF!,1,0)))) -> 0 | AL176: =IF(S176="","0",(IF(S176<AI176,1,IF(S176>#REF!,1,0)))) -> 0 | AM176: =IF(T176="","0",(IF(T176<AI176,1,IF(T176>#REF!,1,0)))) -> 0
V177: X | AB177: 0 | AC177: 0 | AJ177: =IF(Q177="","0",(IF(P177<AI177,1,IF(Q177>#REF!,1,0)))) -> 0 | AK177: =IF(R177="","0",(IF(R177<AI177,1,IF(R177>#REF!,1,0)))) -> 0 | AL177: =IF(S177="","0",(IF(S177<AI177,1,IF(S177>#REF!,1,0)))) -> 0 | AM177: =IF(T177="","0",(IF(T177<AI177,1,IF(T177>#REF!,1,0)))) -> 0
V178: X | AB178: 0 | AC178: 0 | AJ178: =IF(Q178="","0",(IF(P178<AI178,1,IF(Q178>#REF!,1,0)))) -> 0 | AK178: =IF(R178="","0",(IF(R178<AI178,1,IF(R178>#REF!,1,0)))) -> 0 | AL178: =IF(S178="","0",(IF(S178<AI178,1,IF(S178>#REF!,1,0)))) -> 0 | AM178: =IF(T178="","0",(IF(T178<AI178,1,IF(T178>#REF!,1,0)))) -> 0
V179: X | AB179: 0 | AC179: 0 | AJ179: =IF(Q179="","0",(IF(P179<AI179,1,IF(Q179>#REF!,1,0)))) -> 0 | AK179: =IF(R179="","0",(IF(R179<AI179,1,IF(R179>#REF!,1,0)))) -> 0 | AL179: =IF(S179="","0",(IF(S179<AI179,1,IF(S179>#REF!,1,0)))) -> 0 | AM179: =IF(T179="","0",(IF(T179<AI179,1,IF(T179>#REF!,1,0)))) -> 0
V180: X | AB180: 0 | AC180: 0 | AJ180: =IF(Q180="","0",(IF(P180<AI180,1,IF(Q180>#REF!,1,0)))) -> 0 | AK180: =IF(R180="","0",(IF(R180<AI180,1,IF(R180>#REF!,1,0)))) -> 0 | AL180: =IF(S180="","0",(IF(S180<AI180,1,IF(S180>#REF!,1,0)))) -> 0 | AM180: =IF(T180="","0",(IF(T180<AI180,1,IF(T180>#REF!,1,0)))) -> 0
V181: X | AB181: 0 | AC181: 0 | AJ181: =IF(Q181="","0",(IF(P181<AI181,1,IF(Q181>#REF!,1,0)))) -> 0 | AK181: =IF(R181="","0",(IF(R181<AI181,1,IF(R181>#REF!,1,0)))) -> 0 | AL181: =IF(S181="","0",(IF(S181<AI181,1,IF(S181>#REF!,1,0)))) -> 0 | AM181: =IF(T181="","0",(IF(T181<AI181,1,IF(T181>#REF!,1,0)))) -> 0
V182: X | AB182: 0 | AC182: 0 | AJ182: =IF(Q182="","0",(IF(P182<AI182,1,IF(Q182>#REF!,1,0)))) -> 0 | AK182: =IF(R182="","0",(IF(R182<AI182,1,IF(R182>#REF!,1,0)))) -> 0 | AL182: =IF(S182="","0",(IF(S182<AI182,1,IF(S182>#REF!,1,0)))) -> 0 | AM182: =IF(T182="","0",(IF(T182<AI182,1,IF(T182>#REF!,1,0)))) -> 0
V183: X | AB183: 0 | AC183: 0 | AJ183: =IF(Q183="","0",(IF(P183<AI183,1,IF(Q183>#REF!,1,0)))) -> 0 | AK183: =IF(R183="","0",(IF(R183<AI183,1,IF(R183>#REF!,1,0)))) -> 0 | AL183: =IF(S183="","0",(IF(S183<AI183,1,IF(S183>#REF!,1,0)))) -> 0 | AM183: =IF(T183="","0",(IF(T183<AI183,1,IF(T183>#REF!,1,0)))) -> 0
V184: X | AB184: 0 | AC184: 0 | AJ184: =IF(Q184="","0",(IF(P184<AI184,1,IF(Q184>#REF!,1,0)))) -> 0 | AK184: =IF(R184="","0",(IF(R184<AI184,1,IF(R184>#REF!,1,0)))) -> 0 | AL184: =IF(S184="","0",(IF(S184<AI184,1,IF(S184>#REF!,1,0)))) -> 0 | AM184: =IF(T184="","0",(IF(T184<AI184,1,IF(T184>#REF!,1,0)))) -> 0
V185: X | AB185: 0 | AC185: 0 | AJ185: =IF(Q185="","0",(IF(P185<AI185,1,IF(Q185>#REF!,1,0)))) -> 0 | AK185: =IF(R185="","0",(IF(R185<AI185,1,IF(R185>#REF!,1,0)))) -> 0 | AL185: =IF(S185="","0",(IF(S185<AI185,1,IF(S185>#REF!,1,0)))) -> 0 | AM185: =IF(T185="","0",(IF(T185<AI185,1,IF(T185>#REF!,1,0)))) -> 0
V186: X | AB186: 0 | AC186: 0 | AJ186: =IF(Q186="","0",(IF(P186<AI186,1,IF(Q186>#REF!,1,0)))) -> 0 | AK186: =IF(R186="","0",(IF(R186<AI186,1,IF(R186>#REF!,1,0)))) -> 0 | AL186: =IF(S186="","0",(IF(S186<AI186,1,IF(S186>#REF!,1,0)))) -> 0 | AM186: =IF(T186="","0",(IF(T186<AI186,1,IF(T186>#REF!,1,0)))) -> 0
V187: X | AB187: 0 | AC187: 0 | AJ187: =IF(Q187="","0",(IF(P187<AI187,1,IF(Q187>#REF!,1,0)))) -> 0 | AK187: =IF(R187="","0",(IF(R187<AI187,1,IF(R187>#REF!,1,0)))) -> 0 | AL187: =IF(S187="","0",(IF(S187<AI187,1,IF(S187>#REF!,1,0)))) -> 0 | AM187: =IF(T187="","0",(IF(T187<AI187,1,IF(T187>#REF!,1,0)))) -> 0
V188: X | AB188: 0 | AC188: 0 | AJ188: =IF(Q188="","0",(IF(P188<AI188,1,IF(Q188>#REF!,1,0)))) -> 0 | AK188: =IF(R188="","0",(IF(R188<AI188,1,IF(R188>#REF!,1,0)))) -> 0 | AL188: =IF(S188="","0",(IF(S188<AI188,1,IF(S188>#REF!,1,0)))) -> 0 | AM188: =IF(T188="","0",(IF(T188<AI188,1,IF(T188>#REF!,1,0)))) -> 0
V189: X | AB189: 0 | AC189: 0 | AJ189: =IF(Q189="","0",(IF(P189<AI189,1,IF(Q189>#REF!,1,0)))) -> 0 | AK189: =IF(R189="","0",(IF(R189<AI189,1,IF(R189>#REF!,1,0)))) -> 0 | AL189: =IF(S189="","0",(IF(S189<AI189,1,IF(S189>#REF!,1,0)))) -> 0 | AM189: =IF(T189="","0",(IF(T189<AI189,1,IF(T189>#REF!,1,0)))) -> 0
V190: X | AB190: 0 | AC190: 0 | AJ190: =IF(Q190="","0",(IF(P190<AI190,1,IF(Q190>#REF!,1,0)))) -> 0 | AK190: =IF(R190="","0",(IF(R190<AI190,1,IF(R190>#REF!,1,0)))) -> 0 | AL190: =IF(S190="","0",(IF(S190<AI190,1,IF(S190>#REF!,1,0)))) -> 0 | AM190: =IF(T190="","0",(IF(T190<AI190,1,IF(T190>#REF!,1,0)))) -> 0
V191: X | AB191: 0 | AC191: 0 | AJ191: =IF(Q191="","0",(IF(P191<AI191,1,IF(Q191>#REF!,1,0)))) -> 0 | AK191: =IF(R191="","0",(IF(R191<AI191,1,IF(R191>#REF!,1,0)))) -> 0 | AL191: =IF(S191="","0",(IF(S191<AI191,1,IF(S191>#REF!,1,0)))) -> 0 | AM191: =IF(T191="","0",(IF(T191<AI191,1,IF(T191>#REF!,1,0)))) -> 0
V192: X | AB192: 0 | AC192: 0 | AJ192: =IF(Q192="","0",(IF(P192<AI192,1,IF(Q192>#REF!,1,0)))) -> 0 | AK192: =IF(R192="","0",(IF(R192<AI192,1,IF(R192>#REF!,1,0)))) -> 0 | AL192: =IF(S192="","0",(IF(S192<AI192,1,IF(S192>#REF!,1,0)))) -> 0 | AM192: =IF(T192="","0",(IF(T192<AI192,1,IF(T192>#REF!,1,0)))) -> 0
V193: X | AB193: 0 | AC193: 0 | AJ193: =IF(Q193="","0",(IF(P193<AI193,1,IF(Q193>#REF!,1,0)))) -> 0 | AK193: =IF(R193="","0",(IF(R193<AI193,1,IF(R193>#REF!,1,0)))) -> 0 | AL193: =IF(S193="","0",(IF(S193<AI193,1,IF(S193>#REF!,1,0)))) -> 0 | AM193: =IF(T193="","0",(IF(T193<AI193,1,IF(T193>#REF!,1,0)))) -> 0
V194: X | AB194: 0 | AC194: 0 | AJ194: =IF(Q194="","0",(IF(P194<AI194,1,IF(Q194>#REF!,1,0)))) -> 0 | AK194: =IF(R194="","0",(IF(R194<AI194,1,IF(R194>#REF!,1,0)))) -> 0 | AL194: =IF(S194="","0",(IF(S194<AI194,1,IF(S194>#REF!,1,0)))) -> 0 | AM194: =IF(T194="","0",(IF(T194<AI194,1,IF(T194>#REF!,1,0)))) -> 0
V195: X | AB195: 0 | AC195: 0 | AJ195: =IF(Q195="","0",(IF(P195<AI195,1,IF(Q195>#REF!,1,0)))) -> 0 | AK195: =IF(R195="","0",(IF(R195<AI195,1,IF(R195>#REF!,1,0)))) -> 0 | AL195: =IF(S195="","0",(IF(S195<AI195,1,IF(S195>#REF!,1,0)))) -> 0 | AM195: =IF(T195="","0",(IF(T195<AI195,1,IF(T195>#REF!,1,0)))) -> 0
V196: X | AB196: 0 | AC196: 0 | AJ196: =IF(Q196="","0",(IF(P196<AI196,1,IF(Q196>#REF!,1,0)))) -> 0 | AK196: =IF(R196="","0",(IF(R196<AI196,1,IF(R196>#REF!,1,0)))) -> 0 | AL196: =IF(S196="","0",(IF(S196<AI196,1,IF(S196>#REF!,1,0)))) -> 0 | AM196: =IF(T196="","0",(IF(T196<AI196,1,IF(T196>#REF!,1,0)))) -> 0
V197: X | AB197: 0 | AC197: 0 | AJ197: =IF(Q197="","0",(IF(P197<AI197,1,IF(Q197>#REF!,1,0)))) -> 0 | AK197: =IF(R197="","0",(IF(R197<AI197,1,IF(R197>#REF!,1,0)))) -> 0 | AL197: =IF(S197="","0",(IF(S197<AI197,1,IF(S197>#REF!,1,0)))) -> 0 | AM197: =IF(T197="","0",(IF(T197<AI197,1,IF(T197>#REF!,1,0)))) -> 0
V198: X | AB198: 0 | AC198: 0 | AJ198: =IF(Q198="","0",(IF(P198<AI198,1,IF(Q198>#REF!,1,0)))) -> 0 | AK198: =IF(R198="","0",(IF(R198<AI198,1,IF(R198>#REF!,1,0)))) -> 0 | AL198: =IF(S198="","0",(IF(S198<AI198,1,IF(S198>#REF!,1,0)))) -> 0 | AM198: =IF(T198="","0",(IF(T198<AI198,1,IF(T198>#REF!,1,0)))) -> 0
V199: X | AB199: 0 | AC199: 0 | AJ199: =IF(Q199="","0",(IF(P199<AI199,1,IF(Q199>#REF!,1,0)))) -> 0 | AK199: =IF(R199="","0",(IF(R199<AI199,1,IF(R199>#REF!,1,0)))) -> 0 | AL199: =IF(S199="","0",(IF(S199<AI199,1,IF(S199>#REF!,1,0)))) -> 0 | AM199: =IF(T199="","0",(IF(T199<AI199,1,IF(T199>#REF!,1,0)))) -> 0
V200: X | AB200: 0 | AC200: 0 | AJ200: =IF(Q200="","0",(IF(P200<AI200,1,IF(Q200>#REF!,1,0)))) -> 0 | AK200: =IF(R200="","0",(IF(R200<AI200,1,IF(R200>#REF!,1,0)))) -> 0 | AL200: =IF(S200="","0",(IF(S200<AI200,1,IF(S200>#REF!,1,0)))) -> 0 | AM200: =IF(T200="","0",(IF(T200<AI200,1,IF(T200>#REF!,1,0)))) -> 0
V201: X | AB201: 0 | AC201: 0 | AJ201: =IF(Q201="","0",(IF(P201<AI201,1,IF(Q201>#REF!,1,0)))) -> 0 | AK201: =IF(R201="","0",(IF(R201<AI201,1,IF(R201>#REF!,1,0)))) -> 0 | AL201: =IF(S201="","0",(IF(S201<AI201,1,IF(S201>#REF!,1,0)))) -> 0 | AM201: =IF(T201="","0",(IF(T201<AI201,1,IF(T201>#REF!,1,0)))) -> 0
V202: X | AB202: 0 | AC202: 0 | AJ202: =IF(Q202="","0",(IF(P202<AI202,1,IF(Q202>#REF!,1,0)))) -> 0 | AK202: =IF(R202="","0",(IF(R202<AI202,1,IF(R202>#REF!,1,0)))) -> 0 | AL202: =IF(S202="","0",(IF(S202<AI202,1,IF(S202>#REF!,1,0)))) -> 0 | AM202: =IF(T202="","0",(IF(T202<AI202,1,IF(T202>#REF!,1,0)))) -> 0
V203: X | AB203: 0 | AC203: 0 | AJ203: =IF(Q203="","0",(IF(P203<AI203,1,IF(Q203>#REF!,1,0)))) -> 0 | AK203: =IF(R203="","0",(IF(R203<AI203,1,IF(R203>#REF!,1,0)))) -> 0 | AL203: =IF(S203="","0",(IF(S203<AI203,1,IF(S203>#REF!,1,0)))) -> 0 | AM203: =IF(T203="","0",(IF(T203<AI203,1,IF(T203>#REF!,1,0)))) -> 0
V204: X | AB204: 0 | AC204: 0 | AJ204: =IF(Q204="","0",(IF(P204<AI204,1,IF(Q204>#REF!,1,0)))) -> 0 | AK204: =IF(R204="","0",(IF(R204<AI204,1,IF(R204>#REF!,1,0)))) -> 0 | AL204: =IF(S204="","0",(IF(S204<AI204,1,IF(S204>#REF!,1,0)))) -> 0 | AM204: =IF(T204="","0",(IF(T204<AI204,1,IF(T204>#REF!,1,0)))) -> 0
... 130 more rows

Sheet 7.Material Test Results
B2: Produktionsteilzulassung Materialtestergebnisse
B5: ORGANISATION: | D5: ='0.Submission Checklist'!R2 -> 0 | J5: BAUTEILNUMMER: | L5: ='0.Submission Checklist'!D4 -> 0
B6: LIEFERANTEN-/VERKÄUFERCODE: | J6: BAUTEILNAME: | L6: ='0.Submission Checklist'!D5 -> 0
B7: MATERIALLIEFERANT: | J7: Zeichnungsnummer | N7: ='0.Submission Checklist'!D2 -> 0
B8: * BENUTZERDEFINIERTER LIEFERANTEN-/VERKÄUFERCODE: | J8: Zeichnungsrevisionen | N8: ='0.Submission Checklist'!D3 -> 0
B9: *Wenn eine Quellzulassung erforderlich ist, geben Sie den vom Lieferanten (Quelle) und Kunden zugewiesenen Code an. | J9: NAME des LABORS:
B10: MATERIALSPEZIFIKATION NR. / REV / DATUM | F10: SPEZIFIKATION/GRENZEN: | H10: TESTDATUM | I10: ANZAHL GETESTET | J10: LIEFERANTENTESTERGEBNISSE (DATEN) | P10: PASS | Q10: FAIL
I50: Pauschale Konformitätserklärungen sind für keinerlei Prüfergebnisse akzeptiert.
J52: UNTERSCHRIFT | L52: TITEL | O52: DATUM

Sheet 8.Performance Test Results
G2: Produktionsteilzulassung
G3: Leistungstestergebnisse
B6: ORGANISATION: | E6: ='0.Submission Checklist'!R2 -> 0 | J6: BAUTEILNUMMER: | L6: ='0.Submission Checklist'!D4 -> 0
B7: LIEFERANTEN-/VERKÄUFERCODE: | J7: BAUTEILNAME: | L7: ='0.Submission Checklist'!D5 -> 0
B8: LIEFERANT: | D8: ='0.Submission Checklist'!R2 -> 0 | J8: ZEICHNUNGSNR.: | L8: ='0.Submission Checklist'!D2 -> 0
B9: * BENUTZERDEFINIERTER LIEFERANTEN-/VERKÄUFERCODE: | J9: DWG REV: | L9: ='0.Submission Checklist'!D3 -> 0
B10: *Wenn eine Quellzulassung erforderlich ist, geben Sie den vom Lieferanten (Quelle) und Kunden zugewiesenen Code an.
B11: PRÜFVORSCHRIFT / REV / DATUM | F11: SPEZIFIKATION/GRENZEN: | H11: TESTDATUM | I11: ANZAHL GETESTET | J11: LIEFERANTENPRÜFERGEBNISSE (DATEN) / PRÜFBEDINGUNGEN | Q11: PASS | R11: FAIL
I51: Pauschale Konformitätserklärungen sind für keinerlei Prüfergebnisse akzeptiert.
J53: UNTERSCHRIFT | L53: TITEL | P53: DATUM

Sheet 9.Statistical Analysis & Cp
I1: Datenseite – 1
A2: Bauteilnummer | C2: Beschreibung | H2: Datum der Studie | I2: 00:00:00
C3: Studiengrund
A4: Gemessen von: | B4: 0 | C4: Notizen | H4: Druckrevision
A5: FAI-Nr. | H5: Gemessene Anlage
A6: Beschreibung Zeichnungs-merkmal | B6: ▲6 CAV 1 | C6: ▲6 CAV 2 | D6: ▲9 CAV 1 | E6: ▲9 CAV 2 | F6: ▲6 CAV 1 | G6: ▲6 CAV 2 | H6: ▲6 CAV 1 | I6: ▲6 CAV 2
A7: Nominal | B7: 5 | C7: =B7 -> 5 | D7: 0.393 | E7: =D7 -> 0.393 | F7: 0 | G7: 0 | H7: 0 | I7: 0.247
A8: + Toleranz | B8: 0.02 | C8: 0 | D8: 0.002 | E8: =D8 -> 0.002 | F8: 0.005 | G8: 0.005 | H8: 0.005 | I8: 0.001
A9: - Toleranz | B9: 0.02 | C9: =B9 -> 0.02 | D9: 0.002 | E9: =D9 -> 0.002 | F9: 0.005 | G9: 0.005 | H9: 0.005 | I9: 0.001
A10: Beschreibung | B10: Radius | C10: Radius | D10: PROFIL | E10: ID | F10: POS | G10: POS | H10: POS
A11: Messart | B11: Radiusmessgerät | C11: Radiusmessgerät | D11: CMM
A12: Maßeinheit
A13: Muster Nr. | B13: =B6 -> ▲6 CAV 1 | C13: ▲6 CAV 2 | D13: ▲9 CAV 1 | E13: ▲9 CAV 2 | F13: ▲6 CAV 1 | G13: ▲6 CAV 2 | H13: ▲6 CAV 1 | I13: ▲6 CAV 2
A14: 1 | B14: 5
A15: 2 | B15: 5
A16: 3 | B16: 5
A17: 4 | B17: 5
A18: 5 | B18: 5
A19: 6 | B19: 5 | J19: =IF(I19="","",ABS(#REF!-I19)) -> 
A20: 7 | B20: 5 | J20: =IF(I20="","",ABS(I19-I20)) -> 
A21: 8 | B21: 5
A22: 9 | B22: 5
A23: 10 | B23: 5
A24: 11 | B24: 5
A25: 12 | B25: 5
A26: 13 | B26: 5
A27: 14 | B27: 5
A28: 15 | B28: 5
A29: 16 | B29: 5
A30: 17 | B30: 5
A31: 18 | B31: 5
A32: 19 | B32: 5
A33: 20 | B33: 5
A34: 21 | B34: 5
A35: 22 | B35: 5
A36: 23 | B36: 5
A37: 24 | B37: 5
A38: 25 | B38: 5
A39: 26 | B39: 5
A40: 27 | B40: 5
A41: 28 | B41: 5
A42: 29 | B42: 5
A43: 30 | B43: 4.99
A44: 31 | B44: 4.99
A45: 32 | B45: 4.99
A46: 33 | B46: 4.99
A47: STATISTISCHE DATEN
A48: USL | B48: =IF(B8="","",B8+B7) -> 5.02 | C48: 5 | D48: 0.395 | E48: 0.395 | F48: 0.005 | G48: 0.005 | H48: 0.005 | I48: 0.248
A49: LSL | B49: =IF(B9="","",B7-ABS(B9)) -> 4.98 | C49: 4.98 | D49: 0.391 | E49: 0.391 | F49: -0.005 | G49: -0.005 | H49: -0.005 | I49: 0.246
A50: MEAN | B50: =IF(ISERROR(AVERAGE(B14:B46)),"",AVERAGE(B14:B46)) -> 4.998787879
A51: MAX | B51: =IF(AND(MAX(B14:B46)=0,B14=""),"",MAX(B14:B46)) -> 5
A52: MIN | B52: =IF(AND(MIN(B14:B46)=0,B14=""),"",MIN(B14:B46)) -> 4.99
A53: USL-LSL | B53: =IF(B48="",IF(ISERROR(B50-B49),"",B50-B49),IF(B49="",B48-B50,B48-B49)) -> 0.04 | C53: =IF(C48="",IF(ISERROR(C50-C49),"",C50-C49),IF(C49="",C48-C50,C48-C49)) -> 0.02 | D53: 0.004 | E53: 0.004 | F53: 0.01 | G53: 0.01 | H53: 0.01 | I53: 0.002
A54: Std Dev | B54: =IF(ISERROR(STDEV(B14:B46)),"",STDEV(B14:B46)) -> 0.003314339826
A55: Est Std Dev | B55: =AVERAGE($B$59:$B$59)/B60 -> 0.003525893432 | C55: =AVERAGE($C$59:$C$59)/C60 ->  | D55: =AVERAGE($D$59:$D$59)/D60 ->  | E55: =AVERAGE($E$59:$E$59)/E60 ->  | F55: =AVERAGE($F$59:$F$59)/F60 ->  | G55: =AVERAGE($G$59:$G$59)/G60 ->  | H55: =AVERAGE($H$59:$H$59)/H60 ->  | I55: =AVERAGE($I$59:$I$59)/I60 -> 
A56: Reichweite | B56: =B51-B52 -> 0.01 | C56: =C51-C52 -> 
A57: SubG Size | B57: =COUNT(B14:B46) -> 33 | C57: 0 | D57: 0 | E57: 0 | F57: 0 | G57: 0 | H57: 0 | I57: 0
A58: Range/StDev | B58: =B56/B54 -> 3.017192118 | C58: =C56/C54 -> 
A59: StDev-Calc | B59: =IF($B14="","",IF($B$57>$B$58,IF(ISERROR(STDEV($B14:B46)),"",STDEV($B14:B46)),ABS(MAX($B14:B46)-MIN($B14:B46)))) -> 0.003314339826 | C59: =IF($C14="","",IF($C$57>$C$58,IF(ISERROR(STDEV($C14:C46)),"",STDEV($C14:C46)),ABS(MAX($C14:C46)-MIN($C14:C46)))) ->  | D59: =IF($D14="","",IF($D$57>$D$58,IF(ISERROR(STDEV($D14:D46)),"",STDEV($D14:D46)),ABS(MAX($D14:D46)-MIN($D14:D46)))) ->  | E59: =IF($E14="","",IF($E$57>$E$58,IF(ISERROR(STDEV($E14:E46)),"",STDEV($E14:E46)),ABS(MAX($E14:E46)-MIN($E14:E46)))) ->  | F59: =IF($F14="","",IF($F$57>$F$58,IF(ISERROR(STDEV($F14:F46)),"",STDEV($F14:F46)),ABS(MAX($F14:F46)-MIN($F14:F46)))) ->  | G59: =IF($G14="","",IF($G$57>$G$58,IF(ISERROR(STDEV($G14:G46)),"",STDEV($G14:G46)),ABS(MAX($G14:G46)-MIN($G14:G46)))) ->  | H59: =IF($H14="","",IF($H$57>$H$58,IF(ISERROR(STDEV($H14:H46)),"",STDEV($H14:H46)),ABS(MAX($H14:H46)-MIN($H14:H46)))) ->  | I59: =IF($I14="","",IF($I$57>$I$58,IF(ISERROR(STDEV($I14:I46)),"",STDEV($I14:I46)),ABS(MAX($I14:I46)-MIN($I14:I46)))) -> 
A60: d2/c4 | B60: =IF($B$57>$B$58,0.94,2.326) -> 0.94 | C60: =IF($C$57>$C$58,0.94,2.326) ->  | D60: =IF($D$57>$D$58,0.94,2.326) ->  | E60: =IF($E$57>$E$58,0.94,2.326) ->  | F60: =IF($F$57>$F$58,0.94,2.326) ->  | G60: =IF($G$57>$G$58,0.94,2.326) ->  | H60: =IF($H$57>$H$58,0.94,2.326) ->  | I60: =IF($I$57>$I$58,0.94,2.326) -> 
A61: Cp | B61: =IF(B50="","",IF(OR(B48="",B49=""),"*",IF(B55=0,99,B53/(6*B55)))) -> 1.890773727 | C61: =IF(C50="","",IF(OR(C48="",C49=""),"*",IF(C55=0,99,C53/(6*C55)))) ->  | D61: =IF(D50="","",IF(OR(D48="",D49=""),"*",IF(D55=0,99,D53/(6*D55)))) ->  | E61: =IF(E50="","",IF(OR(E48="",E49=""),"*",IF(E55=0,99,E53/(6*E55)))) -> 
A62: Cpk | B62: =IF(B50="","",MIN(B63:B64)) -> 1.77618138 | C62: =IF(C50="","",MIN(C63:C64)) ->  | D62: =IF(D50="","",MIN(D63:D64)) -> 
A63: CpkU | B63: =IF(OR(B50="",B48=""),"",IF(B55=0,99,MIN((B48-B50)/(3*B55)))) -> 2.005366074 | C63: =IF(OR(C50="",C48=""),"",IF(C55=0,99,MIN((C48-C50)/(3*C55)))) ->  | D63: =IF(OR(D50="",D48=""),"",IF(D55=0,99,MIN((D48-D50)/(3*D55)))) -> 
A64: CpkL | B64: =IF(OR(B49="",B50=""),"",IF(B55=0,99,(B50-B49)/(3*B55))) -> 1.77618138 | C64: =IF(OR(C49="",C50=""),"",IF(C55=0,99,(C50-C49)/(3*C55))) ->  | D64: =IF(OR(D49="",D50=""),"",IF(D55=0,99,(D50-D49)/(3*D55))) -> 
A65: Pp | B65: =IF(B50="","",IF(OR(B48="",B49=""),"*",IF(B54=0,2,B53/(6*B54)))) -> 2.011461412 | C65: =IF(C50="","",IF(OR(C48="",C49=""),"*",IF(C54=0,2,C53/(6*C54)))) -> 
A66: Ppk | B66: =IF(B50="","",MIN(B67:B68)) -> 1.88955466
A67: PpU | B67: =IF(OR(B48="",B50=""),"",IF(B54=0,99,MIN((B48-B50)/(3*B54)))) -> 2.133368164 | C67: =IF(OR(C48="",C50=""),"",IF(C54=0,99,MIN((C48-C50)/(3*C54)))) -> 
A68: PpL | B68: =IF(OR(B49="",B50=""),"",IF(B54=0,99,(B50-B49)/(3*B54))) -> 1.88955466 | C68: =IF(OR(C49="",C50=""),"",IF(C54=0,99,(C50-C49)/(3*C54))) -> 
A69: Z1 | B69: =IF(B$49<>FALSE,IF(ISERROR(STANDARDIZE(B$49,B$50,B$54)),-6,STANDARDIZE(B$49,B$50,B$55)),"*") -> -5.32854414 | C69: =IF(C$49<>FALSE,IF(ISERROR(STANDARDIZE(C$49,C$50,C$54)),-6,STANDARDIZE(C$49,C$50,C$55)),"*") -> -6 | D69: -6 | E69: -6 | F69: -6 | G69: -6 | H69: -6 | I69: -6
A70: Z2 | B70: =IF(B$48<>FALSE,IF(ISERROR(STANDARDIZE(B$48,B$50,B$55)),6,STANDARDIZE(B$48,B$50,B$55)),"*") -> 6.016098223 | C70: =IF(C$48<>FALSE,IF(ISERROR(STANDARDIZE(C$48,C$50,C$55)),6,STANDARDIZE(C$48,C$50,C$55)),"*") -> 6 | D70: 6 | E70: 6 | F70: 6 | G70: 6 | H70: 6 | I70: 6
A71: Z Bench | B71: =IF(OR(B77<1,B77>=1000000),MIN(B69,B70),NORMSINV(1-(B77/1000000))) -> -5.32854414 | C71: =IF(OR(C77<1,C77>=1000000),MIN(C69,C70),NORMSINV(1-(C77/1000000))) -> -6 | D71: -6 | E71: -6 | F71: -6 | G71: -6 | H71: -6 | I71: -6
A72: Z Target | B72: =IF(B$55<>0,ABS(B$50-B$73)/(3*B55),99999) -> 0.1145923471 | C72: =IF(C$55<>0,ABS(C$50-C$73)/(3*C55),99999) -> 
A73: Target | B73: =IF(AND(B$49<>FALSE,B$48<>FALSE),$B$49+($B$48-$B$49)/2,B$50) -> 5 | C73: =IF(AND(C$49<>FALSE,C$48<>FALSE),$B$49+($B$48-$B$49)/2,C$50) -> 5 | D73: 5 | E73: 5 | F73: 5 | G73: 5 | H73: 5 | I73: 5
A74: % Defects | B74: =B82/1000000 -> 0 | C74: =C82/1000000 -> 
A75: Expected 1 | B75: =IF(B69="*","*",NORMSDIST(B69)*1000000) -> 0.04950156911 | C75: =IF(C69="*","*",NORMSDIST(C69)*1000000) -> 0.000986587645 | D75: 0.000986587645 | E75: 0.000986587645 | F75: 0.000986587645 | G75: 0.000986587645 | H75: 0.000986587645 | I75: 0.000986587645
A76: Expected 2 | B76: =IF(B70="*","*",(1-NORMSDIST(B70))*1000000) -> 0.0008933559448 | C76: =IF(C70="*","*",(1-NORMSDIST(C70))*1000000) -> 0.0009865877004 | D76: 0.0009865877004 | E76: 0.0009865877004 | F76: 0.0009865877004 | G76: 0.0009865877004 | H76: 0.0009865877004 | I76: 0.0009865877004
A77: Expected 3 | B77: =IF(B$49=FALSE,IF(B$48<>FALSE,B76,"*"),IF(B$48=FALSE,IF(B$49,B75,"*"),SUM(B75:B76))) -> 0.05039492505 | C77: =IF(C$49=FALSE,IF(C$48<>FALSE,C76,"*"),IF(C$48=FALSE,IF(C$49,C75,"*"),SUM(C75:C76))) -> 0.001973175345 | D77: 0.001973175345 | E77: 0.001973175345 | F77: 0.001973175345 | G77: 0.001973175345 | H77: 0.001973175345 | I77: 0.001973175345
A78: Expected 4 | B78: =IF(B77="","",B77/1000000) -> 5.039492505e-08 | C78: =IF(C77="","",C77/1000000) -> 1.973175345e-09 | D78: 1.973175345e-09 | E78: 1.973175345e-09 | F78: 1.973175345e-09 | G78: 1.973175345e-09 | H78: 1.973175345e-09 | I78: 1.973175345e-09
A79: Sigma | B79: =IF(OR(B82<1,B82="*"),IF(OR(B77<1,B77="*"),6,IF(B77="","",ROUND((NORMSINV(1-B77/1000000))+1.5,2))),ROUND((NORMSINV(1-B82/1000000))+1.5,2)) -> 6 | C79: =IF(OR(C82<1,C82="*"),IF(OR(C77<1,C77="*"),6,IF(C77="","",ROUND((NORMSINV(1-C77/1000000))+1.5,2))),ROUND((NORMSINV(1-C82/1000000))+1.5,2)) -> 
A80: PPM<LSL | B80: =IF(B$49<>FALSE,COUNTIF($B$14:$B$46, "<" & $B$49)*1000000/$B$57,"*") -> 0 | C80: =IF(C$49<>FALSE,COUNTIF($C$14:$C$46, "<" & $C$49)*1000000/$C$57,"*") ->  | D80: =IF(D$49<>FALSE,COUNTIF($D$14:$D$46, "<" & $D$49)*1000000/$D$57,"*") ->  | E80: =IF(E$49<>FALSE,COUNTIF($E$14:$E$46, "<" & $E$49)*1000000/$E$57,"*") ->  | F80: =IF(F$49<>FALSE,COUNTIF($F$14:$F$46, "<" & $F$49)*1000000/$F$57,"*") ->  | G80: =IF(G$49<>FALSE,COUNTIF($G$14:$G$46, "<" & $G$49)*1000000/$G$57,"*") ->  | H80: =IF(H$49<>FALSE,COUNTIF($H$14:$H$46, "<" & $H$49)*1000000/$H$57,"*") ->  | I80: =IF(I$49<>FALSE,COUNTIF($I$14:$I$46, "<" & $I$49)*1000000/$I$57,"*") -> 
A81: PPM>USL | B81: =IF(B$48<>FALSE,COUNTIF($B$14:$B$46, ">" & $B$48)*1000000/$B$57,"*") -> 0 | C81: =IF(C$48<>FALSE,COUNTIF($C$14:$C$46, ">" & $C$48)*1000000/$C$57,"*") ->  | D81: =IF(D$48<>FALSE,COUNTIF($D$14:$D$46, ">" & $D$48)*1000000/$D$57,"*") ->  | E81: =IF(E$48<>FALSE,COUNTIF($E$14:$E$46, ">" & $E$48)*1000000/$E$57,"*") ->  | F81: =IF(F$48<>FALSE,COUNTIF($F$14:$F$46, ">" & $F$48)*1000000/$F$57,"*") ->  | G81: =IF(G$48<>FALSE,COUNTIF($G$14:$G$46, ">" & $G$48)*1000000/$G$57,"*") ->  | H81: =IF(H$48<>FALSE,COUNTIF($H$14:$H$46, ">" & $H$48)*1000000/$H$57,"*") ->  | I81: =IF(I$48<>FALSE,COUNTIF($I$14:$I$46, ">" & $I$48)*1000000/$I$57,"*") -> 
A82: PPM | B82: =SUM(B80:B81) -> 0 | C82: =SUM(C80:C81) -> 
A83: UCL | B83: =B50+(B54*3) -> 5.008730898 | C83: =C50+(C54*3) ->  | D83: =D50+(D54*3) -> 
A84: LCL | B84: =B50-(B54*3) -> 4.988844859 | C84: =C50-(C54*3) ->  | D84: =D50-(D54*3) -> 

Sheet 10.Post PPAP Run@Rate Pilot Run
E2: Post-dkPAP Run@Rate-Testlauf
B4: Lieferanteninformationen
C6: Name des Lieferanten: | E6: ='0.Submission Checklist'!R2 -> 0 | I6: Datum:
B7: Zeichnungsnummer: | E7: ='0.Submission Checklist'!D2 -> 0 | I7: dk Einkaufverantwortlicher | M7: ='0.Submission Checklist'!D7 -> 0
C8: Zeichnungsrevision: | E8: ='0.Submission Checklist'!D3 -> 0 | I8: Kontaktperson Lieferant | M8: ='0.Submission Checklist'!R4 -> 0
C9: Revisionsdatum: | I9: Telefonnummer Lieferant
C10: dormakaba P/N: | E10: ='0.Submission Checklist'!D4 -> 0 | I10: E-Mail-Adresse Lieferant: | M10: ='0.Submission Checklist'!R5 -> 0
B13: Kapazitätsplanung | H13: Run@Rate-Volumen
D15: AMU: | L15: Anforderungen Run@Rate-Testlauf:
D16: Vorlaufzeit: | L16: Betriebszeit Run@Rate:
B18: Testlauf (vom Lieferanten auszufüllen)
B20: Geplantes Laufdatum: | G20: Tatsächliches Laufdatum:
B21: Geplante Laufzeit: | G21: Tatsächliche Laufzeit:
B22: Ziel (PPH): | G22: Ist (PPH):
B23: Geplanter Ausschuss: | G23: Tatsächlicher Ausschuss:
B24: Geplante Rüstzeit: | G24: Tatsächliche Rüstzeit:
B25: Qualitätsleistungsziel (PPM): | G25: Tatsächliche Qualitätsleistung (PPM):
C28: Kommentare:
B34: Empfehlung Lieferant
B36: Pass | H36: Fail
B37: Zulassung Lieferant
G38: Unterschrift | M38: Datum
C39: Vertreter Lieferant
D42: Alle nachstehenden Informationen sind von dormakaba auszufüllen
C45: Kommentare:
B50: Zulassungsunterschriften | G50: Unterschrift | M50: Datum
C52: Vertreter Versorgungskette
C54: Qualitätsbeauftragter
C56: Technischer Vertreter

Sheet 11.Appearance Approval
O1: BERICHT ZUR FREIGABE DES AUSSEHENS
B2: BAUTEILNUMMER | E2: ='0.Submission Checklist'!D4 -> 0 | L2: ZEICHNUNGSNUMMER | P2: ='0.Submission Checklist'!D2 -> 0 | T2: ANWENDUNG
B3: BAUTEILNAME | E3: ='0.Submission Checklist'!D5 -> 0 | L3: KÄUFER | Q3: E/C-NIVEAU | V3: DATUM
B4: LIEFERANT | E4: ='[1]0.Submission Checklist'!R2 -> 0 | I4: ANSCHRIFT | M4: ORT | Q4: BUNDESLAND | T4: PLZ | V4: LIEFERANTENCODE
B5: GRUND FÜR DIE | F5: TEILEVORLAGEBESTÄTIGUNG | K5: SONDERMUSTER | Q5: WIEDEREINREICHUNG | V5: SONSTIGES
B6: EINREICHUNG | F6: VORTEXTUR | K6: ERSTE PRODUKTIONSLIEFERUNG | Q6: TECHNISCHE ÄNDERUNG
B7: AUSSEHENSBEWERTUNG
S8: VORTEXTUR BEWERTUNG | W8: AUTORISIERTER KUNDE
B9: INFORMATIONEN DER ORGANISATION ZU QUELLE UND TEXTUR (Attributanalyse) | W9: VERTRETER
W10: UNTERSCHRIFT UND DATUM
S11: KORRIGIEREN UND
S12: FORTFAHREN
S13: KORRIGIEREN UND
S14: WIEDER EINREICHEN
S15: GENEHMIGT
S16: ETCH/TOOL/EDM
B17: FARBAUSWERTUNG (Variable Data Analysis)
X18: FARBE | Y18: TEIL DISPOSITION (PASS/FAIL)
B19: FARBE | E19: TRISTIMULUSDATEN | H19: MASTER | I19: MASTER | J19: MATERIAL | K19: MATERIAL | L19: FARBTON | P19: WERT | R19: CHROMA | T19: GLANZ | V19: METALLISCH | X19: VERSAND
B20: SUFFIX | H20: NUMMER: | I20: DATUM | J20: ART | K20: QUELLE | V20: BRILLANZ | X20: SUFFIX
C21: DL* | D21: Da* | E21: Db* | F21: DE* | G21: CMC | L21: ROT | M21: GELB | N21: GRÜN | O21: BLAU | P21: HELL | Q21: DUNKEL | R21: GRAU | S21: BLANK | T21: HOCH | U21: NIEDRIG | V21: HOCH | W21: NIEDRIG
B30: KOMMENTARE
B33: UNTERSCHRIFT DER ORGANISATION | I33: TELEFONNR. | K33: DATUM | N33: AUTORISIERTER KUNDE | X33: DATUM
N34: UNTERSCHRIFT VERTRETER

Sheet 12.Master Sample

Sheet 13.Tooling Information Form
D1: Werkzeuginformationsformular | K1: Referenznummer dormakaba-Werkzeug (falls zutreffend) | O1: XXXXX
B2: Name des Lieferanten: | E2: dkPAP-Vorlagestufe | H2: Betroffene Merkmalsnummer(n) | K2: Bauteilbeschreibung
B3: ='0.Submission Checklist'!R2 -> 0 | E3: ='0.Submission Checklist'!C14 -> Stufe 1 | K3: ='0.Submission Checklist'!D5 -> 0
B4: Datum | C4: dkPAP Fälligkeitsdatum | E4: Bauteilnummer | H4: Werkzeugstandort
C5: ='0.Submission Checklist'!D10 -> 00:00:00 | E5: ='0.Submission Checklist'!D4 -> 0 | H5: Standort
B6: Datum des Werkzeugwechsels | E6: Bauteilname | H6: Maschine
H7: Station
B8: Neues Werkzeug | D8: Modifizierte Werkzeuge | G8: Benötigt für PPAP | J8: Hinweis: Dieses Dokument muss für alle dormakaba-eigenen Werkzeuge ausgefüllt werden.
B10: Komplette Werkzeugliste des Lieferanten, um sicherzustellen, dass alle Elemente abgeschlossen sind.
B11: WERKZEUGHANDLUNG | E11: Wer? | H11: Was? | K11: Wann? | M11: Status
B12: Bildbearbeitung
B13: Diagramm oder Streifenlayout
B14: Werkzeugzeichnungen
B15: Werkzeugkostenaufschlüsselung
B16: Designkosten
B17: Materialkosten
B18: Arbeitskosten
B19: Werkzeugbeschreibung
B20: Werkzeugabmessungen
B21: Länge
B22: Breite
B23: Höhe
B24: Einbauhöhe
B25: Gewicht
B26: Pressengröße
B27: Werkzeugmaterial
B28: Werkzeugkapazität
B29: Stündlich
B30: Täglich
B31: Jährlich
B32: Lebenserwartung
B34: Kommentare
C41: Abb. 1 | D41: Draufsicht | I41: Abb. 2 | J41: Unteransicht
C55: Abb. 3 | D55: Linke Ansicht | I55: Abb. 4 | J55: Rechte Ansicht
C69: Abb. 5 | D69: Frontansicht | I69: Abb. 6 | J69: Rückansicht
C83: Abb. 7 | D83: Werkzeug Stammblatt Ansicht | I83: Abb. 8 | J83: Beispiel
B97: Zusätzliche Kommentare

Sheet 14.Packaging Form
B1: Verpackungsform
B2: Datum | E2: Kontaktperson Verpackung | H2: Bauteilnummer | K2: Lieferantenverantwortung abgeschlossen?
L3: Verpackungsdesign
B4: Name des Lieferanten: | E4: Telefonnummer | H4: Druckrevisionsstufe | L4: Verpackung, die Versand- und Materialumschlagschäden verhindert
B5: ='0.Submission Checklist'!R2 -> 0
B6: Lieferantencode | E6: Faxnummer | H6: Bauteilbeschreibung
L7: Elektronische Speicherung der eingereichten Verpackungsdaten
B8: Produktionsstätte des Lieferanten | E8: E-Mail-Adresse | H8: HAZMAT?
B11: DIGITALE BILDER | C11: Teil | F11: In Verpackungsposition | I11: Behälter | L11: Mit sichtbarem Etikett
B30: PAKETDATEN | C30: Komponente | E30: L (mm) | F30: B (mm) | G30: H (mm) | H30: Komponente | J30: Gewicht (kg) | K30: Mengen
C31: Bauteilgröße | H31: Teil | K31: Anzahl Teile pro Behälter
C32: Nur Behälter | H32: Packmaterial (Tara) | K32: Behälter pro Lage auf Palette
C33: Nur Palette | H33: Behälter (Tara) | K33: Lagen pro Palette
C34: Einheitsladung als Versand | H34: Palette (Tara) | K34: Behälter pro Palette
C35: Zoll zu mm | E35: Pfund zu kg | H35: Behälter Brutto (inkl. Teile) | K35: Stapelregel
D36: =2.54*C36 -> 0 | F36: =0.45359237*E36 -> 0 | H36: Stückgut Brutto (inkl. Teile)
B39: DIGITALE BILDER | C39: Packmaterial | F39: In Behälterposition | I39: Stückgut | L39: Wie mit Etikett geliefert
B58: VERPACKUNGSMATERIAL | C58: Beschreibung | E58: Hersteller | G58: Material: | I58: Bearbeitungszeit | K58: RET/EXP | L58: KOMMENTARE
C59: Packmaterial
C60: Behälterfarbe
C61: Behältertyp
C62: Abdeckung/Aheadkappe
C63: Palette
C64: Stretch/Schrumpffolie
C65: Streifen
C66: Andere

Sheet 15.Checking Aids
D2: Prüfmittel
A4: ORGANISATION: | E4: BAUTEILNUMMER:
A5: LIEFERANTEN-/VERKÄUFERCODE: | E5: BAUTEILNAME:
A6: LIEFERANT: | E6: ZEICHNUNGSNR.:
A7: * BENUTZERDEFINIERTER LIEFERANTEN-/VERKÄUFERCODE: | E7: DWG REV:
A8: Bauteilname: | E8: Erstellt am:
A9: Messgerätenummer | C9: Revisionsstand Maßzeichnung | D9: Beschreibung Messgerät/Instrument | E9: Kalibrierstatus | F9: MSA-Ergebnisse | G9: Datum MSA

Sheet 16.Software Firmware
E2: Software-/Firmware-Programmierungsüberprüfung
C5: Von dormakaba auszufüllen | G5: Vom Lieferanten auszufüllen
B7: Allgemeine Informationen
C9: Name des Lieferanten: | D9: ='0.Submission Checklist'!R2 -> 0 | G9: Datum:
C10: Standort des Lieferanten: | G10: Seitennr.
C11: Zeichnungsnummer: | D11: ='0.Submission Checklist'!D2 -> 0 | G11: Seiten insgesamt
C12: Zeichnungsrevision: | D12: ='0.Submission Checklist'!D3 -> 0
C13: SAP Bauteilnummer: | D13: ='0.Submission Checklist'!D4 -> 0
C15: Beschreibung der Änderung (Bitte beschreiben Sie ausführlich die Art der Änderung/Aktualisierung)
D24: Firmware #1 | G24: Firmware #2
C25: FW Zeichnung -->
C26: Beschreibung -->
C27: Muster Nummer | D27: Erwarteter Wert | E27: Lieferant Überprüfung | F27: dormakaba Überprüfung | G27: Erwarteter Wert | H27: Lieferant Überprüfung | I27: dormakaba Überprüfung
D35: Konfiguration #1 | G35: Konfiguration #2
C36: Beschreibung -->
C37: Muster Nummer | D37: Erwarteter Wert | E37: Lieferant Überprüfung | F37: dormakaba Überprüfung | G37: Erwarteter Wert | H37: Lieferant Überprüfung | I37: dormakaba Überprüfung
C45: Verwenden Sie mehrere Kopien dieses Formulars für zusätzliche Firmware- oder Konfigurationsüberprüfungen
C48: Kommentare
B53: Zulassungsunterschriften
C55: Lieferant | G55: dk Qualität

Sheet 17.Part Submission Warrant
F2: Teilevorlagebestätigung
C5: Bauteilname: | L5: SAP Bauteilnummer (8-stellig): | R5: ='0.Submission Checklist'!D4 -> 0
C6: Zeichnungs-Nr. | E6: ='0.Submission Checklist'!D2 -> 0 | H6: Zeichnungsrevision | J6: ='0.Submission Checklist'!D3 -> 0 | M6: Bauteilnummer des Lieferanten:
B7: Bestell-Nr. | K7: Gewicht (kg/g): | R7: PPAP Fälligkeitsdatum: | U7: ='0.Submission Checklist'!D10 -> 0
C10: LIEFERANTENINFORMATIONEN | M10: dormakaba INFORMATIONEN
C12: ='0.Submission Checklist'!R2 -> 0 | M12: dormakaba | U12: /
C13: Name der Organisation | H13: Lieferanten-/Verkäufercode | M13: dormakaba Division/Werk
C15: Adresse | M15: dormakaba Vertreter Versorgungskette
M16: Bitte geben Sie die Nr. dieser Einreichung an:
C17: Ort | I17: Bundesland | M17: Wenn nicht Erstübermittlung, wurden alle gewünschten Änderungen
M18: vorgenommen?
C19: Land | I19: Postleitzahl
C21: MATERIALBERICHTERSTATTUNG
C22: Enthält dieses Material gemäß den Materialvorschriften eingeschränkten Stoffe?
C23: Angeforderte Materialkonformitätserklärungen via Portal? | K23: EU RoHS | N23: EU REACH | S23: TSCA | V23: CA Prop 65
C27: GRUND FÜR DIE VORLAGE (mindestens einen überprüfen)
C36: ANGEFORDERTE VORLAGESTUFE (automatisch aus Checkliste eingefügt)
C37: ='[1]Submission Checklist Version 1 '!N13 -> Level 3
C38: ERGEBNISSE DER EINREICHUNG
C39: Ergebnisse für
C40: Diese Ergebnisse erfüllen alle Zeichnungs- und Spezifikationsanforderungen: | N40: (Wenn „NEIN“ – Erklärung erforderlich)
C41: Erklärung:
C44: Form / Hohlraum / Produktionsprozess
C45: ERKLÄRUNG
C46: Ich bestätige hiermit, dass die durch diesen Garantieschein repräsentierten Muster repräsentativ sind für unsere Bauteile und dass diese in einem Prozess hergestellt wurden, der alle Anforderungen erfüllt.
C47: Prozessanforderungen. Ich bestätige ferner, dass die Muster gemäß dieser Anforderungen | O47: / | R47: . Ich bestätige auch, dass dokumentierte Beweise für
C48: hergestellt wurden und diese aktenkundig und zur Überprüfung verfügbar sind. Ich habe Abweichungen von der nachstehenden Erklärung festgestellt.
C49: ERLÄUTERUNG/KOMMENTARE:
C51: Ist jedes Customer Tool richtig markiert und nummeriert?
C52: Autorisierte Unterschrift der Organisation: | L52: Datum:
K53: Telefonnummer
K54: E-Mail:
C56: NUR FÜR dormakaba
C57: PPAP Garantieverfügung: | Q57: Kommentar:
C58: dormakaba Testverfügung: | Q58: Kommentar:
B59: Testgarantieverfügung Lieferant: | Q59: Kommentar:
B61: dormakaba Autorisierte Unterschrift:
IV65538: QMS
